Workbook

Sheet Introduction and outcomes
C3: Introduction to the schools financial value standard (SFVS)
C5: The schools financial value standard helps to provide schools with assurance that they are meeting the basic standards necessary to achieve a good level of financial health and resource management. The tool can be used to identify possible areas for change to ensure that resources are being used to support high-quality teaching and the best education outcomes for pupils. The tool is in two parts:
C6: 1. A checklist, which asks a number of questions of governing bodies in six areas of resource management to provide assurance that the school is managing its resources effectively.
C7: 2. A dashboard, which shows how a school's data compares to thresholds on a range of statistics that have been identified as indicators for good resource management and outcomes.
C10: Outcome of schools financial value standard (SFVS)
C12: Summary of agreed action and timetable for reporting back:
C13: Aware we have answered NO to question Q21 as we do not look at DfE recommended deals when considering best value for non-staff expenditure. However the SBM will ensure these are checked from now on and use to compare best value against other quotes etc. Areas highlighted red by RAG rating data on the Dashboard: high expenditure on teaching staff and high expenditure on premises costs - these have already been noted and discussed with governors, and plans are in place for future years. Need to bring costs down in line with two bulge classes leaving over the last two academic years.
C15: Signature: | O15: Chair of governing body / management committee
C17: Full name of signatory: | L17: Rev Val Williams
C19: Date SFVS agreed by full governing body / managament committee | L19: 2020-03-09
C21: Date SFVS submitted to local authority for review: | L21: 2020-03-10

Sheet Checklist
C3: Schools financial value standard - checklist
C5: The checklist asks a number of questions of governing bodies in six areas of resource management to help provide assurance that resources are being managed effectively. The completion of this assessment forms part of the schools financial value standard. Your return must be submitted to your local authority
C6: Guidance on completion of this document can be found here. This guidance also includes examples of good practice and details further support available to assist governing bodies in addressing specific issues. Clicking on the individual questions below will also take you to the relevant section of the guidance.
C7: Schools should answer each question with 'yes', 'no', or 'in part' from the drop down lists provided. They should provide comments, evidence and proposed actions for questions as appropriate.
C9: School name: | H9: Furzefield Primary School
C11: School LAEstab number: | H11: 9362954
M13: Answer | O13: Comments, evidence and proposed actions
C14: A. Governance
C16: 1 | D16: In the view of the governing body and senior staff, does the governing body have adequate financial skills among its members to fulfil its role of challenge and support in the field of budget management and value for money? | K16: Q1 guidance | M16: Yes | O16: We have a range of financial skills & experience amognst the GB, and this is audited regularly by the clerk. Governors have attended finance courses run by Stricty4S/Surrey. Two members of the admin team are trained to operate the finances on FMS: Finance Assistnat and School Business Manager (SBM). The SBM has extensive knowledge & experience in education finance and has the DSBM qualification (Diploma in School Business Management). She attends termly briefings by Surrey/Strictly4S and regular financial training and meetings. The Finance Assistant has the CSBM and has worked previously as a part time SBM in another Surrey school.
C17: 2 | D17: Does the governing body have a finance committee (or equivalent) with clear terms of reference and a knowledgeable and experienced chair? | K17: Q2 guidance | M17: Yes | O17: Clear Terms of Reference in place. Chair of Finance & Staffing Committee has significant experience in this area.
C18: 3 | D18: Does the governing body board receive clear and concise monitoring reports of the school's budget position at least six times a year? | K18: Q3 guidance | M18: Yes | O18: Monthly FMRS are uploaded to Governor hub and quarterly committee meetings review monitoring reports in more detail - every term the Finance & Staffing Committee receive up to date finance reports from the SBM (based on the most current FMR). The financial position is also reproted to the full GB (see minutes).
C19: 4 | D19: Are business interests of governing body members and staff properly registered and taken into account so as to avoid conflicts of interest? | K19: Q4 guidance | M19: Yes | O19: Governors complete annual Register of Pecuniary & Business Interests form. This item is on the agenda at he start of every meeting.
C20: 5 | D20: Does the school have access to an adequate level of financial expertise, including when specialist finance staff are absent, e.g. on sick leave? | K20: Q5 guidance | M20: Yes | O20: The school has one Finance Assistant and an experienced SBM. They are supported by a Financial Consultant (Strictly4S Education) and other members of the finance helpdesk, plus Surrey County Council's funding team. 'Bursar support' can also be purchased on an ad hoc basis from Strictly 4S if necessary.
M21: =IF(OR(ROUND(SUM(M16:M20),3)=100%,SUM(M16:M20)=0),"","Section must sum to 100%") -> 
C22: B. School strategy
C24: 6 | D24: Does the school have a realistic, sustainable and flexible financial strategy in place for at least the next 3 years, based on realistic assumptions about future funding, pupil numbers and pressures? | K24: Q6 guidance | M24: Yes | O24: Three year plans ar now part of the draft budget process with Surrey and are shared with Governors in the Autumn Term. These draft plans are based on the most current assumptions and known changes in pupil numbers and works needed etc. in future years. Projects and funding allocated link in with the SDP.
C25: 7 | D25: Is the financial strategy integrated with the school’s strategy for raising standards and attainment? | K25: Q7 guidance | M25: Yes | O25: Budget priorities set according to SDP, focussed on raising standards and achievement. Statements are published annually on the school website re Pupil premium and Sports/PE Grant - they clearly show the impact in raising standards at school.
C26: 8 | D26: Does the school have an appropriate business continuity or disaster recovery plan, including an up-to-date asset register and adequate insurance? | K26: Q8 guidance | M26: Yes | O26: The business continuity plan is within the school's Emergency Plan and this is reviewed annually by SEMT. The Finance Assistant maintains an asset register for single items over £250 and anything 'pinchable', i.e. attractive portable items under £250 each such as cameras. Sweethaven Computers maintain an asset register of all IT equipment (over £100 per item) in school which has been purchased through their company, (i.e. pupil laptops, Smartboards, desktops). Insurance is paid annually through Surrey County Council for property, indemnity, public liability and minibus.
M27: =IF(OR(ROUND(SUM(M21:M25),3)=100%,SUM(M21:M25)=0),"","Section must sum to 100%") -> 
C28: C. Setting the annual budget
C30: 9 | D30: Does the school set a well-informed and balanced budget each year (with an agreed and timed plan for eliminating any deficit)? | K30: Q9 guidance | M30: Yes | O30: The draft budget produced in November highlights any potential difficulties - this is checked by the school's Financial Consultant and shown to Finance & Staffing Committee members for discussion. Actual funding figures are usually released at the end of February and the new budget plan must be finalised and approved by full GB by 1st May. The school works towards eliminating in year deficits (excluding planned special projects) within 3 year plans. Detailed notes are available alongside the budget plans.
C31: 10 | D31: Does the budget setting process allow sufficient time for the governing body to scrutinise and challenge the information provided? | K31: Q10 guidance | M31: Yes | O31: Finance & Staffing Committee discuss the draft budget in detail in November. The final budget plan is approved by the full GB in the Spring Term. (See minutes).
C32: 11 | D32: Is the governing body realistic in its pupil number projections and can it move quickly to recast the budget if the projections and the reality are materially different? | K32: Q11 guidance | M32: Yes | O32: Pupil numbers monitored weekly by Admissions Officer who liaises with the SBM, (for example if the nursery numbers are low). January census data will be checked and if the pupil numbers are vastly different to the draft budget produced the SBM would alert the GB. Governors informed of any changes in year by the SBM at meetings and through the FMRs (monitoring reprots would show any variances to the original budget due to additonal funding and/or clawbacks).
C33: 12 | D33: Is end year outturn in line with budget projections, or if not, is the governing body alerted to significant variations in a timely manner, and do such variations result from explicitly planned changes or from genuinely unforeseeable circumstances? | K33: Q12 guidance | M33: Yes | O33: FMRS produced monthly by SBM (with notes), and details reported to Finance and Staffing Committee, where variances can be challenged/questioned. Any changes to the budget and in year forecast are discussed fully with governors - see minutes. Virements and additional expenditure over £10K are agreed at committee level as necessary.
C34: 13 | D34: Are balances at a reasonable level and does the school have a clear plan for using the money it plans to hold in balance at the end of each year? | K34: Q13 guidance | M34: Yes | O34: Agreed as part of the budget setting process and used strategically where viable to improve teaching and learning and the school environment. Any balances to be used for special rpojects are 'earmarked'.
M35: =IF(OR(ROUND(SUM(M28:M34),3)=100%,SUM(M28:M34)=0),"","Section must sum to 100%") -> 
C36: D. Staffing
C38: 14 | D38: Does the school review and challenge its staffing structure regularly to ensure it is the best structure to meet the needs of the school whilst maintaining financial integrity? | K38: Q14 guidance | M38: Yes | O38: The Headteacher regularly reviews staffing and this is reported to governors. The intial staffing structure for the academic year is presented in the HT's Autumn Term report to the GB. Recent changes were made to the deployment of support staff due to financial restraints and additional hours claims have reduced significantly. As staff leave naturally the leadership team look at how best to replace or cover with existing staff etc. to maintain adequate support for pupils yet taking into account the financial position.
C39: 15 | D39: Has the use of professional independent advice informed part of the pay decision process in relation to the head teacher and is it tightly correlated to strong educational outcomes and sound financial management? | K39: Q15 guidance | M39: Yes | O39: An independent consultant from Surrey forms part of the Headteacher's Pay Appraisal Panel.
C40: 16 | D40: Does the school benchmark the size of its senior leadership team annually against that of similar schools? | K40: Q16 guidance | M40: Yes | O40: This benchmarking is part of the gov.uk benchmarking on the workforce tab which is looked at regularly. Specific graphs highlight SLT data, showing Furzefield is 'average'.
M41: =IF(OR(ROUND(SUM(M34:M39),3)=100%,SUM(M34:M39)=0),"","Section must sum to 100%") -> 
C42: E. Value for money
C44: 17 | D44: Does the school benchmark its income and expenditure annually against that of similar schools and investigate further where any category appears to be out of line? | K44: Q17 guidance | M44: Yes | O44: Surrey Comparative Expenditure Data Report shared with governors and reviewed. We have looked at areas where we are showing in the high percentile and discussed reasons why and whether we can make savings/changes (i.e. premises, buy backs). The RAG rating data on the new SFVS document should be useful going forward!
C45: 18 | D45: Does the school have procedures for purchasing goods and services that both meet legal requirements and secure value for money? | K45: Q18 guidance | M45: Yes | O45: See Financial Management and Administration Policy, follwoed by the school.
C46: 19 | D46: Is the governing body given the opportunity to challenge the school’s plans for replacing contracts for goods and services that are due to expire shortly? | K46: Q19 guidance | M46: Yes | O46: All contracts and buy backs are reviewed annually. However, expensive contarcts such as IT support, photocopiers and minibus would require at least three quotes/tenders. These are then compared, discussed and reviewed with the leadership team and summarised to the Finance Committee for approval.
C47: 20 | D47: Does the School consider collaboration with others, e.g. on sharing staff or joint purchasing, where that would improve value for money? | K47: Q20 guidance | M47: Yes | O47: SBM liaises with other SBMs/Bursars and hs many contacts in Strictly4S and Surrey. Red Oak and school staff 'shared' to support wraparound services. Savings made through bulk school purchasing via Strictly4S (i.e. The Key). Staff encouraged to visit outstanding schools, attend CPD events and share best practice. Opportunties identified in the future to offer/share training on site, and also look at collaborating with other schools re the catering contract.
C48: 21 | D48: Do you compare your non-staff expenditure against the DfE recommended national deals to ensure you are achieving best value? | K48: Q21 guidance | M48: No | O48: We always strive for best value ourselves and look for the best deals, however will have a look at the DfE recommended deals in future.
C49: 22 | D49: Does the school maintain its premises and other assets to an adequate standard and make best use of capital monies for this purpose? | K49: Q22 guidance | M49: Yes | O49: Buildings Maintenance and Property buy back from SCC purchased annually. IT support provided by Sweethaven Computers Ltd, and premises regularly inspected (termly) with the findings fed back to the Health & Safety Committee. Capital monies are used for one-off projects (over £2K) which benefit the whole school - expenditure shown on the FMRs.
M50: =IF(OR(ROUND(SUM(M45:M49),3)=100%,SUM(M45:M49)=0),"","Section must sum to 100%") -> 
C51: F. Protecting public money
C53: 23 | D53: Is the governing body sure that there are no outstanding matters from audit reports, internal audit reports or from previous consideration of weaknesses by the governing body? | K53: Q23 guidance | M53: Yes | O53: All recommendations addressed immediately.
C54: 24 | D54: Are there adequate arrangements in place to manage conflicts of interest or any related party transactions? | K54: Q24 guidance | M54: Yes | O54: All staff and governors annually sign a confilct of interest declaration. If any 'conflicts' were highlighted systems would be put in place to guard against accusations of fraud or mispractice. Advice would eb taken as necessary.
C55: 25 | D55: Are there adequate arrangements in place to guard against fraud and theft by staff, contractors and suppliers? (Please note any instance of fraud or theft detected in the last 12 months) | K55: Q25 guidance | M55: Yes | O55: Segregation of duties avoids any fraudulent activities, use off confidential passwords & various authorised signatories as per policies. Electronic fobs required to enter site and buildings. Visitors required to sign in/out at reception (ID checked), monies stored in safe and collected fortnightly for banking.
C56: 26 | D56: Are all staff aware of the school’s whistleblowing arrangements and to whom they should report concerns? | K56: Q26 guidance | M56: Yes | O56: Copy kept in staffroom highlighting Expolink Europe's Freephone number to report concerns. Staff can access the policy through Staffzone and this information is all writen in the staff handbook (for existing and new staff).
C57: 27 | D57: Does the school have an accounting system that is adequate and properly run and delivers accurate reports, including the annual Consistent Financial Reporting return? | K57: Q27 guidance | M57: Yes | O57: SIMS, FMS (supported by Capita and Strictly4S). Monthly reports produced and year end reports delivered (including CFR) - signed by SBM and Headteacher.
C58: 28 | D58: Does the school have adequate arrangements for audit of voluntary funds? | K58: Q28 guidance | M58: Yes | O58: School Fund is annually examined by an independent professional - reported back to Finance & Staffing Committee. Agreed accounts and year end report uploaded to the Charity Commission website as required.
M59: =IF(OR(ROUND(SUM(M54:M57),3)=100%,SUM(M54:M57)=0),"","Section must sum to 100%") -> 
C60: G. SFVS dashboard
C62: 29 | D62: Have the results of the dashboard been carefully considered and potential follow-up actions identified? | K62: Q29 guidance | M62: Yes | O62: Finance Committee meeting 09/03/2020 - see minutes

Sheet Dashboard
C3: Schools financial value standard - dashboard
C5: Effective resource management is about how a school uses its resources to drive outcomes for its pupils. A school can improve outcomes by using its resources more effectively. The dashboard below is designed to help schools identify areas for improved resource management. It shows how a school compares to thresholds on a range of key indicators. The completion of this assessment forms part of the annual schools financial value standard.
C7: Using the dashboard Schools should use the most up to date data available to them, and not rely on lagged published data. Complete all highlighted cells.
C8: Guidance on calculating or collecting the data for the school so that metrics are compared to thresholds consistently can be found here. Clicking on the link next to individual indicators below will also take you to the relevant section of the guidance.
C9: Either input the school's percentages and ratios directly, or complete the Optional - input raw data form with spending information and school characteristics. The percentages and ratios in the dashboard will then auto-calculate.
C11: Using the results from the dashboard Click here for explanations of what the red, amber and green (RAG) ratings mean and what do with the results.
C13: A. Information about your school
A14: * | G14: 1
C15: School name: | D15: Furzefield Primary School | F15: Click here to see the RAG rating data for this school
C16: School LAEstab number: | D16: 9362954
C17: Phase: | D17: Primary | F17: Input the school's percentages and ratios directly below, or click here to input raw spending and characteristics data for your school
C18: Region: | D18: South East
C19: Number of pupils: | D19: 459
C20: % of pupils eligible for FSM: | D20: 0.1983
C22: This school is being compared to other:
C23: =IF(OR(D$17="",D$18="",D$19="",D$20=""),"", "- "&Calcs!$J29& IF(D17="Primary"," primary schools with ",IF(D17="Secondary with sixth form"," secondary schools with a sixth form with ",IF(D17="Secondary without sixth form"," secondary schools without a sixth form with ",IF(D17="Special","special schools",IF(D17="Alternative provision","alternative provision schools",IF(D17="All-through","all-through schools",IF(D17="Nursery","nursery schools","")))))))&Calcs!$K29) -> - large primary schools with high levels of FSM
C24: =IF(OR(D$17="",D$18="",D$19="",D$20=""),"", IF(D17="Primary","- primary schools ",IF(D17="Secondary with sixth form","- secondary schools with a sixth form ",IF(D17="Secondary without sixth form","- secondary schools without a sixth form ",IF(D17="Special","- special schools ",IF(D17="Alternative provision","- alternative provision schools ",IF(D17="All-through","- all-through schools ",IF(D17="Nursery","- nursery schools ","")))))))&Calcs!$I29&" (for average teacher cost only)") -> - primary schools outside London (for average teacher cost only)
G26: The school's data | I26: Rating against thresholds
C28: B. Spending as a percentage of total expenditure
C30: Spend on teaching staff as a percentage of total expenditure | E30: Guidance | G30: =IFERROR('Optional - input raw data'!F24/'Optional - input raw data'!F13,Calcs!$A$66) -> 0.4938398313 | I30: =IF(OR(D$17="",D$18="",D$19="",D$20="",G30=""),"", IF(G30<=Calcs!C9,Lowest10, IF(AND(G30>Calcs!C9,G30<=Calcs!D9),Lowest20, IF(AND(G30>Calcs!D9,G30<=Calcs!E9),Inline, IF(AND(G30>Calcs!E9,G30<=Calcs!G9),Middle20, IF(AND(G30>Calcs!G9,G30<=Calcs!H9),Inline, IF(AND(G30>Calcs!H9,G30<=Calcs!I9),Highest20, IF(G30>Calcs!I9,Highest10,"")))))))) -> Highest 10% of similar schools
C31: Spend on supply staff as a percentage of total expenditure | E31: Guidance | G31: =IFERROR(('Optional - input raw data'!F25+'Optional - input raw data'!F33+'Optional - input raw data'!F49)/'Optional - input raw data'!F13,Calcs!$A$66) -> 0.006703458367 | I31: =IF(OR(D$17="",D$18="",D$19="",D$20="",G31=""),"", IF(G31<=Calcs!E10,Inline, IF(AND(G31>Calcs!E10,G31<=Calcs!G10),Middle20, IF(AND(G31>Calcs!G10,G31<=Calcs!H10),Inline, IF(AND(G31>Calcs!H10,G31<=Calcs!I10),Highest20, IF(G31>Calcs!I10,Highest10,"")))))) -> Broadly in line with similar schools
C32: Spend on education support staff as a percentage of total expenditure | E32: Guidance | G32: =IFERROR('Optional - input raw data'!F26/'Optional - input raw data'!F13,Calcs!$A$66) -> 0.2313475964 | I32: =IF(OR(D$17="",D$18="",D$19="",D$20="",G32=""),"", IF(G32<=Calcs!E11,Inline, IF(AND(G32>Calcs!E11,G32<=Calcs!G11),Middle20, IF(AND(G32>Calcs!G11,G32<=Calcs!H11),Inline, IF(AND(G32>Calcs!H11,G32<=Calcs!I11),Highest20, IF(G32>Calcs!I11,Highest10,"")))))) -> Broadly in line with similar schools
C33: Spend on administrative and clerical staff as a percentage of total expenditure | E33: Guidance | G33: =IFERROR('Optional - input raw data'!F28/'Optional - input raw data'!F13,Calcs!$A$66) -> 0.05674923755 | I33: =IF(OR(D$17="",D$18="",D$19="",D$20="",G33=""),"", IF(G33<=Calcs!H12,Inline, IF(AND(G33>Calcs!H12,G33<=Calcs!I12),Highest20, IF(G33>Calcs!I12,Highest10,"")))) -> Broadly in line with similar schools
C34: Spend on other staff costs as a percentage of total expenditure | E34: Guidance | G34: =IFERROR(SUM('Optional - input raw data'!F30,'Optional - input raw data'!F31,'Optional - input raw data'!F32,'Optional - input raw data'!F34)/'Optional - input raw data'!F13,Calcs!$A$66) -> 0.0183116751 | I34: =IF(OR(D$17="",D$18="",D$19="",D$20="",G34=""),"", IF(G34<=Calcs!H13,Inline, IF(AND(G34>Calcs!H13,G34<=Calcs!I13),Highest20, IF(G34>Calcs!I13,Highest10,"")))) -> Broadly in line with similar schools
C35: Spend on premises (including staff costs) as a percentage of total expenditure | E35: Guidance | G35: =IFERROR(SUM('Optional - input raw data'!F27,'Optional - input raw data'!F35,'Optional - input raw data'!F36,'Optional - input raw data'!F37)/'Optional - input raw data'!F13,Calcs!$A$66) -> 0.06496459959 | I35: =IF(OR(D$17="",D$18="",D$19="",D$20="",G35=""),"", IF(G35<=Calcs!H14,Inline, IF(AND(G35>Calcs!H14,G35<=Calcs!I14),Highest20, IF(G35>Calcs!I14,Highest10,"")))) -> Broadly in line with similar schools
C36: Spend on teaching resources as a percentage of total expenditure | E36: Guidance | G36: =IFERROR(SUM('Optional - input raw data'!F42,'Optional - input raw data'!F43,'Optional - input raw data'!F44)/'Optional - input raw data'!F13,Calcs!$A$66) -> 0.03349492533 | I36: =IF(OR(D$17="",D$18="",D$19="",D$20="",G36=""),"", IF(G36<=Calcs!C15,Lowest10, IF(AND(G36>Calcs!C15,G36<=Calcs!D15),Lowest20, IF(AND(G36>Calcs!D15,G36<=Calcs!E15),Inline, IF(AND(G36>Calcs!E15,G36<=Calcs!G15),Middle20, IF(G36>Calcs!G15,Inline,"")))))) -> Broadly in line with similar schools
C37: Spend on energy as a percentage of total expenditure | E37: Guidance | G37: =IFERROR('Optional - input raw data'!F39/'Optional - input raw data'!F13,Calcs!$A$66) -> 0.01010100281 | I37: =IF(OR(D$17="",D$18="",D$19="",D$20="",G37=""),"", IF(G37<=Calcs!H16,Inline, IF(AND(G37>Calcs!H16,G37<=Calcs!I16),Highest20, IF(G37>Calcs!I16,Highest10,"")))) -> Broadly in line with similar schools
C38: Other spending as a percentage of total expenditure (balancing line) | E38: Guidance | G38: =IFERROR(SUM('Optional - input raw data'!F29,'Optional - input raw data'!F38,'Optional - input raw data'!F40,'Optional - input raw data'!F41,'Optional - input raw data'!F45,'Optional - input raw data'!F46,'Optional - input raw data'!F47,'Optional - input raw data'!F48,'Optional - input raw data'!F50,'Optional - input raw data'!F51,'Optional - input raw data'!F52,'Optional - input raw data'!F53,'Optional - input raw data'!F54,'Optional - input raw data'!F55)/'Optional - input raw data'!F13,Calcs!$A$66) -> 0.08448767353 | I38: =IF(OR(D$17="",D$18="",D$19="",D$20="",G38=""),"","N/A") -> N/A
G39: =IF(OR(ROUND(SUM(G30:G38),3)=100%,SUM(G30:G38)=0),"","Section must sum to 100%") -> 
C40: C. Reserves / balances as a percentage of total income
C42: In-year balance as a percentage of total income | E42: Guidance | G42: =IFERROR(('Optional - input raw data'!F14-'Optional - input raw data'!F13)/'Optional - input raw data'!F14,Calcs!$A$66) -> -0.08100723908 | I42: =IF(OR(D$17="",D$18="",D$19="",D$20="",G42=""),"", IF(G42<=-0.05,High, IF(AND(G42>-0.05,G42<0),Medium, IF(G42>=0,Low,"")))) -> High risk
C43: Revenue reserve as a percentage of total income | E43: Guidance | G43: =IFERROR('Optional - input raw data'!F15/'Optional - input raw data'!F14,Calcs!$A$66) -> 0.05673763014 | I43: =IF(OR(D$17="",D$18="",D$19="",D$20="",G43=""),"", IF(G43<=-0.05,High, IF(AND(G43>-0.05,G43<0),Medium, IF(G43>=0,Low,"")))) -> Low risk
C45: D. School characteristics
C47: Average teacher cost (£) | E47: Guidance | G47: =IFERROR('Optional - input raw data'!F24/'Optional - input raw data'!F9,Calcs!$A$66) -> 54387.16726 | I47: =IF(OR(D$17="",D$18="",D$19="",D$20="",G47=""),"", IF(G47<=Calcs!C21,Lowest10, IF(AND(G47>Calcs!C21,G47<=Calcs!D21),Lowest20, IF(AND(G47>Calcs!D21,G47<=Calcs!E21),Inline, IF(AND(G47>Calcs!E21,G47<=Calcs!G21),Middle20, IF(AND(G47>Calcs!G21,G47<=Calcs!H21),Inline, IF(AND(G47>Calcs!H21,G47<=Calcs!I21),Highest20, IF(G47>Calcs!I21,Highest10,"")))))))) -> Broadly in line with similar schools
C48: Senior leaders as a percentage of workforce | E48: Guidance | G48: =IFERROR('Optional - input raw data'!F10/'Optional - input raw data'!F11,Calcs!$A$66) -> 0.04648280136 | I48: =IF(OR(D$17="",D$18="",D$19="",D$20="",G48=""),"", IF(G48<=Calcs!E17,Inline, IF(AND(G48>Calcs!E17,G48<=Calcs!G17),Middle20, IF(AND(G48>Calcs!G17,G48<=Calcs!H17),Inline, IF(AND(G48>Calcs!H17,G48<=Calcs!I17),Highest20, IF(G48>Calcs!I17,Highest10,"")))))) -> Broadly in line with similar schools
C49: Pupil to teacher ratio | E49: Guidance | G49: =IFERROR(D19/'Optional - input raw data'!F9,Calcs!$A$66) -> 18.23599523 | I49: =IF(OR(D$17="",D$18="",D$19="",D$20="",G49=""),"", IF(G49<=Calcs!C18,Lowest10, IF(AND(G49>Calcs!C18,G49<=Calcs!D18),Lowest20, IF(AND(G49>Calcs!D18,G49<=Calcs!E18),Inline, IF(AND(G49>Calcs!E18,G49<=Calcs!G18),Middle20, IF(AND(G49>Calcs!G18,G49<=Calcs!H18),Inline, IF(AND(G49>Calcs!H18,G49<=Calcs!I18),Highest20, IF(G49>Calcs!I18,Highest10,"")))))))) -> Broadly in line with similar schools
C50: Pupil to adult ratio | E50: Guidance | G50: =IFERROR(D19/'Optional - input raw data'!F11,Calcs!$A$66) -> 7.111868609 | I50: =IF(OR(D$17="",D$18="",D$19="",D$20="",G50=""),"", IF(G50<=Calcs!C19,Lowest10, IF(AND(G50>Calcs!C19,G50<=Calcs!D19),Lowest20, IF(AND(G50>Calcs!D19,G50<=Calcs!E19),Inline, IF(AND(G50>Calcs!E19,G50<=Calcs!G19),Middle20, IF(AND(G50>Calcs!G19,G50<=Calcs!H19),Inline, IF(AND(G50>Calcs!H19,G50<=Calcs!I19),Highest20, IF(G50>Calcs!I19,Highest10,"")))))))) -> Lowest 20% of similar schools
C51: Teacher contact ratio (less than 1.0) | E51: Guidance | G51: =IFERROR(IF(D17=Calcs!$A$62,('Optional - input raw data'!F22/'Optional - input raw data'!F9),IF(OR(D17=Calcs!$A$63,D17=Calcs!$A$64,D17=Calcs!$A$65),('Optional - input raw data'!F19/('Optional - input raw data'!F18*'Optional - input raw data'!F9)),Calcs!$A$66)),Calcs!$A$66) -> 0.7151370679 | I51: =IF(OR(D$17="",D$18="",D$19="",D$20="",G51=""),"", IF(G51<=0.7,Muchlower, IF(AND(G51>0.7,G51<=0.74),Lower, IF(AND(G51>0.74,G51<=0.8),Inline2, IF(AND(G51>0.8,G51<=0.82),Higher, IF(G51>0.82,Muchhigher,"")))))) -> Lower than recommended
C52: Predicted percentage pupil number change in 3-5 years | E52: Guidance | G52: -0.05 | I52: =IF(OR(D$17="",D$18="",D$19="",D$20="",G52=""),"", IF(G52<=-0.1,High, IF(AND(G52>-0.1,G52<=-0.02),Medium, IF(G52>=-0.02,Low,"")))) -> Medium risk
C53: Average class size | E53: Guidance | G53: 29.47 | I53: =IF(OR(D$17="",D$18="",D$19="",D$20="",G53=""),"", IF(G53<=Calcs!C20,Lowest10, IF(AND(G53>Calcs!C20,G53<=Calcs!D20),Lowest20, IF(AND(G53>Calcs!D20,G53<=Calcs!E20),Inline, IF(AND(G53>Calcs!E20,G53<=Calcs!G20),Middle20, IF(AND(G53>Calcs!G20,G53<=Calcs!H20),Inline, IF(AND(G53>Calcs!H20,G53<=Calcs!I20),Highest20, IF(G53>Calcs!I20,Highest10,"")))))))) -> Highest 20% of similar schools
C55: E. Outcomes
C57: Ofsted rating | E57: Guidance | G57: Good | I57: =IF(OR(D$17="",D$18="",D$19="",D$20="",G57=""),"",INDIRECT(G57)) -> Good
C58: Progress 8 score | E58: Guidance | I58: =IF(OR(D$17="",D$18="",D$19="",D$20="",G58=""),"", IF(G58>=0.5,Wellabove, IF(AND(G58>=0,G58<0.5),Average, IF(AND(G58>=-0.5,G58<0),Below, IF(G58<-0.5,Wellbelow,""))))) -> 
C59: Progress score in reading | E59: Guidance | G59: 0.6 | I59: =IF(OR(D$17="",D$18="",D$19="",D$20="",G59=""),"", IF(G59>=3.1,Wellabove, IF(AND(G59>=0,G59<3.1),Average, IF(AND(G59>=-2.8,G59<0),Below, IF(G59<-2.8,Wellbelow,""))))) -> Average or above average
C60: Progress score in writing | E60: Guidance | G60: -0.2 | I60: =IF(OR(D$17="",D$18="",D$19="",D$20="",G60=""),"", IF(G60>=2.7,Wellabove, IF(AND(G60>=0,G60<2.7),Average, IF(AND(G60>=-2.6,G60<0),Below, IF(G60<-2.6,Wellbelow,""))))) -> Below average
C61: Progress score in maths | E61: Guidance | G61: 1.6 | I61: =IF(OR(D$17="",D$18="",D$19="",D$20="",G61=""),"", IF(G61>=3.2,Wellabove, IF(AND(G61>=0,G61<3.2),Average, IF(AND(G61>=-3.2,G61<0),Below, IF(G61<-3.2,Wellbelow,""))))) -> Average or above average
C63: F: Optional commentary
C65: Used Period 8 November FMR outturn figures. Used today's (15/1/20) pupil numbers - total 459 - and staff FTEs as per budget planning. (See totals added to the optional input raw data sheet). Please note teaching staff also includes the leadership staff plus Ocean SRC and Nursery teachers. We have stated 17 classes: 15 R-Y6 plus 1 for Ocean and 1 for Nursery.

Sheet Optional - input raw data
C3: Raw data form
F4: 1
C5: This form can be used to input raw spend and characteristics information. If used, the information in this table will be used to calculate the percentages and ratios required in the dashboard. Alternatively, click here to input the percentages and ratios directly into the dashboard.
C6: Schools should use the most up to date information available to them, and not rely on lagged published data. All of the data should refer to the same financial year.
C9: Full time equivalent number of teachers (classroom and leadership) | F9: 25.17
C10: Full time equivalent of teachers in the leadership group | F10: 3
C11: Full time equivalent of total school workforce | F11: 64.54
C13: Total expenditure | F13: 2772002
C14: Total income | F14: 2564277
C15: Revenue balances (committed and uncommitted) | F15: 145491
C17: For secondary and all-through schools:
C18: Teaching periods in the timetable cycle
C19: Total lessons taught by all teachers in the timetable cycle
D20: =IFERROR(IF((F19/(F18*F9))<0.5,"Resulting teacher contact ratio is low. Total lessons taught may be incorrectly calculated as too low",IF((F19/(F18*F9))>1,"Resulting teacher contact ratio is greater than 1. Total lessons taught is too high","")),"") -> 
C21: For primary schools:
C22: Total number of classes | F22: 18
C24: E01 | D24: Teaching staff | F24: 1368925
C25: E02 | D25: Supply teaching staff
C26: E03 | D26: Education support staff | F26: 641296
C27: E04 | D27: Premises staff | F27: 80032
C28: E05 | D28: Administrative and clerical staff | F28: 157309
C29: E06 | D29: Catering staff
C30: E07 | D30: Cost of other staff | F30: 21021
C31: E08 | D31: Indirect employee expenses | F31: 14000
C32: E09 | D32: Staff development and training | F32: 9000
C33: E10 | D33: Supply teacher insurance | F33: 18582
C34: E11 | D34: Staff-related insurance | F34: 6739
C35: E12 | D35: Building maintenance and improvement | F35: 42000
C36: E13 | D36: Grounds maintenance and improvement | F36: 11300
C37: E14 | D37: Cleaning and caretaking | F37: 46750
C38: E15 | D38: Water and sewerage | F38: 9000
C39: E16 | D39: Energy | F39: 28000
C40: E17 | D40: Rates | F40: 46073
C41: E18 | D41: Other occupation costs | F41: 867
C42: E19 | D42: Teaching resources | F42: 73848
C43: E20 | D43: ICT teaching resources | F43: 19000
C44: E21 | D44: Examination fees
C45: E22 | D45: Administrative supplies | F45: 42003
C46: E23 | D46: Other insurance premiums | F46: 11642
C47: E24 | D47: Special facilities | F47: 9900
C48: E25 | D48: Catering supplies | F48: 76760
C49: E26 | D49: Agency supply teaching staff
C50: E27 | D50: Bought-in professional services - curriculum | F50: 3867
C51: E28 | D51: Bought-in professional services - other | F51: 34088
C52: E29 | D52: Loan interest
C53: E30 | D53: Direct revenue financing
C54: E31 | D54: Community-focused school staff
C55: E32 | D55: Community-focused school costs

Sheet RAG rating data for your school
B2: Your school has been identified as: | H2: The RAG ratings have been calculated using maintained school and academy 2017 to 18 data. The majority of metrics in the dashboard are percentages and ratios which at a national level don't change significantly year on year, so they still provide a fair and useful comparison with your up to date data. The exception is average teacher cost, which does change year on year. To reflect the latest pay awards (from September 2018 and September 2019) and pensions contribution changes we have uplifted the underlying data by 11.2%. The thresholds therefore reflect average teacher costs for the academic year 2019/20.
B3: =IF(Dashboard!D15="","","- "& INDEX(Calcs!L:L,MATCH(Dashboard!D15,Calcs!A:A,0))) -> - a primary school
B4: =IF(Dashboard!D15="","","- "& INDEX(Calcs!I:I,MATCH(Dashboard!D15,Calcs!A:A,0))) -> - outside London
B5: =IF(Dashboard!D15="","", IF(OR($B$3="- an alternative provision school",$B$3="- a special school",$B$3="- an all-through school",$B$3="- a nursery school"),"", "- a "&INDEX(Calcs!J:J,MATCH(Dashboard!D15,Calcs!A:A,0))&" school because it has "&INDEX(Calcs!M:M,MATCH(Dashboard!D15,Calcs!A:A,0)))) -> - a large school because it has more than 385 pupils
B6: =IF(Dashboard!D15="","", IF(OR($B$3="- an alternative provision school",$B$3="- a special school",$B$3="- an all-through school",$B$3="- a nursery school"),"", "- a school with "&INDEX(Calcs!K:K,MATCH(Dashboard!D15,Calcs!A:A,0))&" because "&INDEX(Calcs!N:N,MATCH(Dashboard!D15,Calcs!A:A,0))&" are eligible")) -> - a school with high levels of FSM because more than 18% of pupils are eligible
B10: The thresholds for the RAG ratings are based on these characteristics and are:
B12: B. Your spending as a percentage of expenditure
D14: Red rating | G14: Amber rating | L14: Light green rating | Q14: Dark green rating
B16: Spend on teaching staff as a percentage of total expenditure | D16: Less than or equal to | E16: =IF(Dashboard!D15="","",INDEX(INDIRECT(INDEX(Calcs!$D:$D,MATCH(Dashboard!D15,Calcs!$A:$A,0))),1,1)) -> 0.355 | G16: Between | H16: =IF(Dashboard!D15="","",INDEX(INDIRECT(INDEX(Calcs!$D:$D,MATCH(Dashboard!D15,Calcs!$A:$A,0))),1,1)) -> 0.355 | I16: and | J16: =IF(Dashboard!D15="","",INDEX(INDIRECT(INDEX(Calcs!$D:$D,MATCH(Dashboard!D15,Calcs!$A:$A,0))),1,2)) -> 0.38 | L16: Between | M16: =IF(Dashboard!D15="","",INDEX(INDIRECT(INDEX(Calcs!$D:$D,MATCH(Dashboard!D15,Calcs!$A:$A,0))),1,2)) -> 0.38 | N16: and | O16: =IF(Dashboard!D15="","",INDEX(INDIRECT(INDEX(Calcs!$D:$D,MATCH(Dashboard!D15,Calcs!$A:$A,0))),1,3)) -> 0.41 | Q16: Between | R16: =IF(Dashboard!D15="","",INDEX(INDIRECT(INDEX(Calcs!$D:$D,MATCH(Dashboard!D15,Calcs!$A:$A,0))),1,3)) -> 0.41 | S16: and | T16: =IF(Dashboard!D15="","",INDEX(INDIRECT(INDEX(Calcs!$D:$D,MATCH(Dashboard!D15,Calcs!$A:$A,0))),1,5)) -> 0.435
D17: Or more than | E17: =IF(Dashboard!D15="","",INDEX(INDIRECT(INDEX(Calcs!$D:$D,MATCH(Dashboard!D15,Calcs!$A:$A,0))),1,7)) -> 0.49 | G17: Or between | H17: =IF(Dashboard!D15="","",INDEX(INDIRECT(INDEX(Calcs!$D:$D,MATCH(Dashboard!D15,Calcs!$A:$A,0))),1,6)) -> 0.465 | I17: and | J17: =IF(Dashboard!D15="","",INDEX(INDIRECT(INDEX(Calcs!$D:$D,MATCH(Dashboard!D15,Calcs!$A:$A,0))),1,7)) -> 0.49 | L17: Or between | M17: =IF(Dashboard!D15="","",INDEX(INDIRECT(INDEX(Calcs!$D:$D,MATCH(Dashboard!D15,Calcs!$A:$A,0))),1,5)) -> 0.435 | N17: and | O17: =IF(Dashboard!D15="","",INDEX(INDIRECT(INDEX(Calcs!$D:$D,MATCH(Dashboard!D15,Calcs!$A:$A,0))),1,6)) -> 0.465
B19: Spend on supply staff as a percentage of total expenditure | D19: More than | E19: =IF(Dashboard!D15="","",INDEX(INDIRECT(INDEX(Calcs!$D:$D,MATCH(Dashboard!D15,Calcs!$A:$A,0))),2,7)) -> 0.06 | G19: Between | H19: =IF(Dashboard!D15="","",INDEX(INDIRECT(INDEX(Calcs!$D:$D,MATCH(Dashboard!D15,Calcs!$A:$A,0))),2,6)) -> 0.045 | I19: and | J19: =IF(Dashboard!D15="","",INDEX(INDIRECT(INDEX(Calcs!$D:$D,MATCH(Dashboard!D15,Calcs!$A:$A,0))),2,7)) -> 0.06 | L19: Between | M19: =IF(Dashboard!D15="","",INDEX(INDIRECT(INDEX(Calcs!$D:$D,MATCH(Dashboard!D15,Calcs!$A:$A,0))),2,5)) -> 0.03 | N19: and | O19: =IF(Dashboard!D15="","",INDEX(INDIRECT(INDEX(Calcs!$D:$D,MATCH(Dashboard!D15,Calcs!$A:$A,0))),2,6)) -> 0.045 | Q19: Between | R19: =IF(Dashboard!D15="","",INDEX(INDIRECT(INDEX(Calcs!$D:$D,MATCH(Dashboard!D15,Calcs!$A:$A,0))),2,3)) -> 0.02 | S19: and | T19: =IF(Dashboard!D15="","",INDEX(INDIRECT(INDEX(Calcs!$D:$D,MATCH(Dashboard!D15,Calcs!$A:$A,0))),2,5)) -> 0.03
L20: Or less than or equal to | M20: =IF(Dashboard!D15="","",INDEX(INDIRECT(INDEX(Calcs!$D:$D,MATCH(Dashboard!D15,Calcs!$A:$A,0))),2,3)) -> 0.02
B22: Spend on education support staff as a percentage of total expenditure | D22: More than | E22: =IF(Dashboard!D15="","",INDEX(INDIRECT(INDEX(Calcs!$D:$D,MATCH(Dashboard!D15,Calcs!$A:$A,0))),3,7)) -> 0.265 | G22: Between | H22: =IF(Dashboard!D15="","",INDEX(INDIRECT(INDEX(Calcs!$D:$D,MATCH(Dashboard!D15,Calcs!$A:$A,0))),3,6)) -> 0.25 | I22: and | J22: =IF(Dashboard!D15="","",INDEX(INDIRECT(INDEX(Calcs!$D:$D,MATCH(Dashboard!D15,Calcs!$A:$A,0))),3,7)) -> 0.265 | L22: Between | M22: =IF(Dashboard!D15="","",INDEX(INDIRECT(INDEX(Calcs!$D:$D,MATCH(Dashboard!D15,Calcs!$A:$A,0))),3,5)) -> 0.22 | N22: and | O22: =IF(Dashboard!D15="","",INDEX(INDIRECT(INDEX(Calcs!$D:$D,MATCH(Dashboard!D15,Calcs!$A:$A,0))),3,6)) -> 0.25 | Q22: Between | R22: =IF(Dashboard!D15="","",INDEX(INDIRECT(INDEX(Calcs!$D:$D,MATCH(Dashboard!D15,Calcs!$A:$A,0))),3,3)) -> 0.195 | S22: and | T22: =IF(Dashboard!D15="","",INDEX(INDIRECT(INDEX(Calcs!$D:$D,MATCH(Dashboard!D15,Calcs!$A:$A,0))),3,5)) -> 0.22
L23: Or less than or equal to | M23: =IF(Dashboard!D15="","",INDEX(INDIRECT(INDEX(Calcs!$D:$D,MATCH(Dashboard!D15,Calcs!$A:$A,0))),3,3)) -> 0.195
B25: Spend on administrative and clerical staff as a percentage of total expenditure | D25: More than | E25: =IF(Dashboard!D15="","",INDEX(INDIRECT(INDEX(Calcs!$D:$D,MATCH(Dashboard!D15,Calcs!$A:$A,0))),4,7)) -> 0.075 | G25: Between | H25: =IF(Dashboard!D15="","",INDEX(INDIRECT(INDEX(Calcs!$D:$D,MATCH(Dashboard!D15,Calcs!$A:$A,0))),4,6)) -> 0.06 | I25: and | J25: =IF(Dashboard!D15="","",INDEX(INDIRECT(INDEX(Calcs!$D:$D,MATCH(Dashboard!D15,Calcs!$A:$A,0))),4,7)) -> 0.075 | L25: Less than or equal to | M25: =IF(Dashboard!D15="","",INDEX(INDIRECT(INDEX(Calcs!$D:$D,MATCH(Dashboard!D15,Calcs!$A:$A,0))),4,6)) -> 0.06
B28: Spend on other staff costs as a percentage of total expenditure | D28: More than | E28: =IF(Dashboard!D15="","",INDEX(INDIRECT(INDEX(Calcs!$D:$D,MATCH(Dashboard!D15,Calcs!$A:$A,0))),5,7)) -> 0.06 | G28: Between | H28: =IF(Dashboard!D15="","",INDEX(INDIRECT(INDEX(Calcs!$D:$D,MATCH(Dashboard!D15,Calcs!$A:$A,0))),5,6)) -> 0.045 | I28: and | J28: =IF(Dashboard!D15="","",INDEX(INDIRECT(INDEX(Calcs!$D:$D,MATCH(Dashboard!D15,Calcs!$A:$A,0))),5,7)) -> 0.06 | L28: Less than or equal to | M28: =IF(Dashboard!D15="","",INDEX(INDIRECT(INDEX(Calcs!$D:$D,MATCH(Dashboard!D15,Calcs!$A:$A,0))),5,6)) -> 0.045
B31: Spend on premises (including staff costs) as a percentage of total expenditure | D31: More than | E31: =IF(Dashboard!D15="","",INDEX(INDIRECT(INDEX(Calcs!$D:$D,MATCH(Dashboard!D15,Calcs!$A:$A,0))),6,7)) -> 0.08 | G31: Between | H31: =IF(Dashboard!D15="","",INDEX(INDIRECT(INDEX(Calcs!$D:$D,MATCH(Dashboard!D15,Calcs!$A:$A,0))),6,6)) -> 0.07 | I31: and | J31: =IF(Dashboard!D15="","",INDEX(INDIRECT(INDEX(Calcs!$D:$D,MATCH(Dashboard!D15,Calcs!$A:$A,0))),6,7)) -> 0.08 | L31: Less than or equal to | M31: =IF(Dashboard!D15="","",INDEX(INDIRECT(INDEX(Calcs!$D:$D,MATCH(Dashboard!D15,Calcs!$A:$A,0))),6,6)) -> 0.07
B34: Spend on teaching resources as a percentage of total expenditure | D34: Less than or equal to | E34: =IF(Dashboard!D15="","",INDEX(INDIRECT(INDEX(Calcs!$D:$D,MATCH(Dashboard!D15,Calcs!$A:$A,0))),7,1)) -> 0.025 | G34: Between | H34: =IF(Dashboard!D15="","",INDEX(INDIRECT(INDEX(Calcs!$D:$D,MATCH(Dashboard!D15,Calcs!$A:$A,0))),7,1)) -> 0.025 | I34: and | J34: =IF(Dashboard!D15="","",INDEX(INDIRECT(INDEX(Calcs!$D:$D,MATCH(Dashboard!D15,Calcs!$A:$A,0))),7,2)) -> 0.03 | L34: Between | M34: =IF(Dashboard!D15="","",INDEX(INDIRECT(INDEX(Calcs!$D:$D,MATCH(Dashboard!D15,Calcs!$A:$A,0))),7,2)) -> 0.03 | N34: and | O34: =IF(Dashboard!D15="","",INDEX(INDIRECT(INDEX(Calcs!$D:$D,MATCH(Dashboard!D15,Calcs!$A:$A,0))),7,3)) -> 0.04 | Q34: Between | R34: =IF(Dashboard!D15="","",INDEX(INDIRECT(INDEX(Calcs!$D:$D,MATCH(Dashboard!D15,Calcs!$A:$A,0))),7,3)) -> 0.04 | S34: and | T34: =IF(Dashboard!D15="","",INDEX(INDIRECT(INDEX(Calcs!$D:$D,MATCH(Dashboard!D15,Calcs!$A:$A,0))),7,5)) -> 0.05
L35: Or more than | M35: =IF(Dashboard!D15="","",INDEX(INDIRECT(INDEX(Calcs!$D:$D,MATCH(Dashboard!D15,Calcs!$A:$A,0))),7,5)) -> 0.05
B37: Spend on energy as a percentage of total expenditure | D37: More than | E37: =IF(Dashboard!D15="","",INDEX(INDIRECT(INDEX(Calcs!$D:$D,MATCH(Dashboard!D15,Calcs!$A:$A,0))),8,7)) -> 0.02 | G37: Between | H37: =IF(Dashboard!D15="","",INDEX(INDIRECT(INDEX(Calcs!$D:$D,MATCH(Dashboard!D15,Calcs!$A:$A,0))),8,6)) -> 0.015 | I37: and | J37: =IF(Dashboard!D15="","",INDEX(INDIRECT(INDEX(Calcs!$D:$D,MATCH(Dashboard!D15,Calcs!$A:$A,0))),8,7)) -> 0.02 | L37: Less than or equal to | M37: =IF(Dashboard!D15="","",INDEX(INDIRECT(INDEX(Calcs!$D:$D,MATCH(Dashboard!D15,Calcs!$A:$A,0))),8,6)) -> 0.015
B41: C. Reserves / balances as a percentage of total income
D43: Red rating | G43: Amber rating | L43: Light green rating | Q43: Dark green rating
B45: In-year balance as a percentage of total income | D45: Less than or equal to | E45: =IF(Dashboard!D15="","",-0.05) -> -0.05 | G45: Between | H45: =IF(Dashboard!D15="","",-0.05) -> -0.05 | I45: and | J45: =IF(Dashboard!D15="","",0) -> 0 | L45: More than or equal to | M45: =IF(Dashboard!D15="","",0) -> 0
B48: Revenue reserve as a percentage of total income | D48: Less than or equal to | E48: =IF(Dashboard!D15="","",-0.05) -> -0.05 | G48: Between | H48: =IF(Dashboard!D15="","",-0.05) -> -0.05 | I48: and | J48: =IF(Dashboard!D15="","",0) -> 0 | L48: More than or equal to | M48: =IF(Dashboard!D15="","",0) -> 0
B52: D. School characteristics
D54: Red rating | G54: Amber rating | L54: Light green rating | Q54: Dark green rating
B56: Average teacher cost (£) | D56: Less than or equal to | E56: =IF(Dashboard!D15="","",INDEX(INDIRECT(INDEX(Calcs!$D:$D,MATCH(Dashboard!D15,Calcs!$A:$A,0))),13,1)) -> 44000 | G56: Between | H56: =IF(Dashboard!D15="","",INDEX(INDIRECT(INDEX(Calcs!$D:$D,MATCH(Dashboard!D15,Calcs!$A:$A,0))),13,1)) -> 44000 | I56: and | J56: =IF(Dashboard!D15="","",INDEX(INDIRECT(INDEX(Calcs!$D:$D,MATCH(Dashboard!D15,Calcs!$A:$A,0))),13,2)) -> 47000 | L56: Between | M56: =IF(Dashboard!D15="","",INDEX(INDIRECT(INDEX(Calcs!$D:$D,MATCH(Dashboard!D15,Calcs!$A:$A,0))),13,2)) -> 47000 | N56: and | O56: =IF(Dashboard!D15="","",INDEX(INDIRECT(INDEX(Calcs!$D:$D,MATCH(Dashboard!D15,Calcs!$A:$A,0))),13,3)) -> 50000 | Q56: Between | R56: =IF(Dashboard!D15="","",INDEX(INDIRECT(INDEX(Calcs!$D:$D,MATCH(Dashboard!D15,Calcs!$A:$A,0))),13,3)) -> 50000 | S56: and | T56: =IF(Dashboard!D15="","",INDEX(INDIRECT(INDEX(Calcs!$D:$D,MATCH(Dashboard!D15,Calcs!$A:$A,0))),13,5)) -> 53000
D57: Or more than | E57: =IF(Dashboard!D15="","",INDEX(INDIRECT(INDEX(Calcs!$D:$D,MATCH(Dashboard!D15,Calcs!$A:$A,0))),13,7)) -> 60000 | G57: Or between | H57: =IF(Dashboard!D15="","",INDEX(INDIRECT(INDEX(Calcs!$D:$D,MATCH(Dashboard!D15,Calcs!$A:$A,0))),13,6)) -> 56500 | I57: and | J57: =IF(Dashboard!D15="","",INDEX(INDIRECT(INDEX(Calcs!$D:$D,MATCH(Dashboard!D15,Calcs!$A:$A,0))),13,7)) -> 60000 | L57: Or between | M57: =IF(Dashboard!D15="","",INDEX(INDIRECT(INDEX(Calcs!$D:$D,MATCH(Dashboard!D15,Calcs!$A:$A,0))),13,5)) -> 53000 | N57: and | O57: =IF(Dashboard!D15="","",INDEX(INDIRECT(INDEX(Calcs!$D:$D,MATCH(Dashboard!D15,Calcs!$A:$A,0))),13,6)) -> 56500
B59: Senior leaders as a percentage of workforce | D59: More than | E59: =IF(Dashboard!D15="","",INDEX(INDIRECT(INDEX(Calcs!$D:$D,MATCH(Dashboard!D15,Calcs!$A:$A,0))),9,7)) -> 0.105 | G59: Between | H59: =IF(Dashboard!D15="","",INDEX(INDIRECT(INDEX(Calcs!$D:$D,MATCH(Dashboard!D15,Calcs!$A:$A,0))),9,6)) -> 0.09 | I59: and | J59: =IF(Dashboard!D15="","",INDEX(INDIRECT(INDEX(Calcs!$D:$D,MATCH(Dashboard!D15,Calcs!$A:$A,0))),9,7)) -> 0.105 | L59: Between | M59: =IF(Dashboard!D15="","",INDEX(INDIRECT(INDEX(Calcs!$D:$D,MATCH(Dashboard!D15,Calcs!$A:$A,0))),9,5)) -> 0.075 | N59: and | O59: =IF(Dashboard!D15="","",INDEX(INDIRECT(INDEX(Calcs!$D:$D,MATCH(Dashboard!D15,Calcs!$A:$A,0))),9,6)) -> 0.09 | Q59: Between | R59: =IF(Dashboard!D15="","",INDEX(INDIRECT(INDEX(Calcs!$D:$D,MATCH(Dashboard!D15,Calcs!$A:$A,0))),9,3)) -> 0.065 | S59: and | T59: =IF(Dashboard!D15="","",INDEX(INDIRECT(INDEX(Calcs!$D:$D,MATCH(Dashboard!D15,Calcs!$A:$A,0))),9,5)) -> 0.075
L60: Or less than or equal to | M60: =IF(Dashboard!D15="","",INDEX(INDIRECT(INDEX(Calcs!$D:$D,MATCH(Dashboard!D15,Calcs!$A:$A,0))),9,3)) -> 0.065
B62: Pupil to teacher ratio | D62: Less than or equal to | E62: =IF(Dashboard!D15="","",INDEX(INDIRECT(INDEX(Calcs!$D:$D,MATCH(Dashboard!D15,Calcs!$A:$A,0))),10,1)) -> 17 | G62: Between | H62: =IF(Dashboard!D15="","",INDEX(INDIRECT(INDEX(Calcs!$D:$D,MATCH(Dashboard!D15,Calcs!$A:$A,0))),10,1)) -> 17 | I62: and | J62: =IF(Dashboard!D15="","",INDEX(INDIRECT(INDEX(Calcs!$D:$D,MATCH(Dashboard!D15,Calcs!$A:$A,0))),10,2)) -> 18 | L62: Between | M62: =IF(Dashboard!D15="","",INDEX(INDIRECT(INDEX(Calcs!$D:$D,MATCH(Dashboard!D15,Calcs!$A:$A,0))),10,2)) -> 18 | N62: and | O62: =IF(Dashboard!D15="","",INDEX(INDIRECT(INDEX(Calcs!$D:$D,MATCH(Dashboard!D15,Calcs!$A:$A,0))),10,3)) -> 20 | Q62: Between | R62: =IF(Dashboard!D15="","",INDEX(INDIRECT(INDEX(Calcs!$D:$D,MATCH(Dashboard!D15,Calcs!$A:$A,0))),10,3)) -> 20 | S62: and | T62: =IF(Dashboard!D15="","",INDEX(INDIRECT(INDEX(Calcs!$D:$D,MATCH(Dashboard!D15,Calcs!$A:$A,0))),10,5)) -> 21
D63: Or more than | E63: =IF(Dashboard!D15="","",INDEX(INDIRECT(INDEX(Calcs!$D:$D,MATCH(Dashboard!D15,Calcs!$A:$A,0))),10,7)) -> 24.5 | G63: Or between | H63: =IF(Dashboard!D15="","",INDEX(INDIRECT(INDEX(Calcs!$D:$D,MATCH(Dashboard!D15,Calcs!$A:$A,0))),10,6)) -> 23 | I63: and | J63: =IF(Dashboard!D15="","",INDEX(INDIRECT(INDEX(Calcs!$D:$D,MATCH(Dashboard!D15,Calcs!$A:$A,0))),10,7)) -> 24.5 | L63: Or between | M63: =IF(Dashboard!D15="","",INDEX(INDIRECT(INDEX(Calcs!$D:$D,MATCH(Dashboard!D15,Calcs!$A:$A,0))),10,5)) -> 21 | N63: and | O63: =IF(Dashboard!D15="","",INDEX(INDIRECT(INDEX(Calcs!$D:$D,MATCH(Dashboard!D15,Calcs!$A:$A,0))),10,6)) -> 23
B65: Pupil to adult ratio | D65: Less than or equal to | E65: =IF(Dashboard!D15="","",INDEX(INDIRECT(INDEX(Calcs!$D:$D,MATCH(Dashboard!D15,Calcs!$A:$A,0))),11,1)) -> 7 | G65: Between | H65: =IF(Dashboard!D15="","",INDEX(INDIRECT(INDEX(Calcs!$D:$D,MATCH(Dashboard!D15,Calcs!$A:$A,0))),11,1)) -> 7 | I65: and | J65: =IF(Dashboard!D15="","",INDEX(INDIRECT(INDEX(Calcs!$D:$D,MATCH(Dashboard!D15,Calcs!$A:$A,0))),11,2)) -> 7.5 | L65: Between | M65: =IF(Dashboard!D15="","",INDEX(INDIRECT(INDEX(Calcs!$D:$D,MATCH(Dashboard!D15,Calcs!$A:$A,0))),11,2)) -> 7.5 | N65: and | O65: =IF(Dashboard!D15="","",INDEX(INDIRECT(INDEX(Calcs!$D:$D,MATCH(Dashboard!D15,Calcs!$A:$A,0))),11,3)) -> 8 | Q65: Between | R65: =IF(Dashboard!D15="","",INDEX(INDIRECT(INDEX(Calcs!$D:$D,MATCH(Dashboard!D15,Calcs!$A:$A,0))),11,3)) -> 8 | S65: and | T65: =IF(Dashboard!D15="","",INDEX(INDIRECT(INDEX(Calcs!$D:$D,MATCH(Dashboard!D15,Calcs!$A:$A,0))),11,5)) -> 9
D66: Or more than | E66: =IF(Dashboard!D15="","",INDEX(INDIRECT(INDEX(Calcs!$D:$D,MATCH(Dashboard!D15,Calcs!$A:$A,0))),11,7)) -> 10.5 | G66: Or between | H66: =IF(Dashboard!D15="","",INDEX(INDIRECT(INDEX(Calcs!$D:$D,MATCH(Dashboard!D15,Calcs!$A:$A,0))),11,6)) -> 9.5 | I66: and | J66: =IF(Dashboard!D15="","",INDEX(INDIRECT(INDEX(Calcs!$D:$D,MATCH(Dashboard!D15,Calcs!$A:$A,0))),11,7)) -> 10.5 | L66: Or between | M66: =IF(Dashboard!D15="","",INDEX(INDIRECT(INDEX(Calcs!$D:$D,MATCH(Dashboard!D15,Calcs!$A:$A,0))),11,5)) -> 9 | N66: and | O66: =IF(Dashboard!D15="","",INDEX(INDIRECT(INDEX(Calcs!$D:$D,MATCH(Dashboard!D15,Calcs!$A:$A,0))),11,6)) -> 9.5
B68: =IF(OR($B$3="- an alternative provision school",$B$3="- a special school",$B$3="- a nursery school"),"","Teacher contact ratio (less than 1.0)") -> Teacher contact ratio (less than 1.0) | D68: =IF(B68="","","Less than or equal to") -> Less than or equal to | E68: =IF(OR($B$3="- an alternative provision school",$B$3="- a special school",$B$3="- a nursery school",Dashboard!D15=""),"",0.7) -> 0.7 | G68: =IF(B68="","","Between") -> Between | H68: =IF(OR($B$3="- an alternative provision school",$B$3="- a special school",$B$3="- a nursery school",Dashboard!D15=""),"",0.7) -> 0.7 | I68: =IF(B68="","","and") -> and | J68: =IF(OR($B$3="- an alternative provision school",$B$3="- a special school",$B$3="- a nursery school",Dashboard!D15=""),"",0.74) -> 0.74 | L68: =IF(B68="","","Between") -> Between | M68: =IF(OR($B$3="- an alternative provision school",$B$3="- a special school",$B$3="- a nursery school",Dashboard!D15=""),"",0.4) -> 0.4 | N68: =IF(G68="","","and") -> and | O68: =IF(OR($B$3="- an alternative provision school",$B$3="- a special school",$B$3="- a nursery school",Dashboard!D15=""),"",0.8) -> 0.8
D69: =IF(B68="","","Or more than") -> Or more than | E69: =IF(OR($B$3="- an alternative provision school",$B$3="- a special school",$B$3="- a nursery school",Dashboard!D15=""),"",0.82) -> 0.82 | G69: =IF(B68="","","Or between") -> Or between | H69: =IF(OR($B$3="- an alternative provision school",$B$3="- a special school",$B$3="- a nursery school",Dashboard!D15=""),"",0.8) -> 0.8 | I69: =IF(B69="","","and") ->  | J69: =IF(OR($B$3="- an alternative provision school",$B$3="- a special school",$B$3="- a nursery school",Dashboard!D15=""),"",0.82) -> 0.82
B71: Predicted percentage pupil number change in 3-5 years | D71: Less than or equal to | E71: =IF(Dashboard!D15="","",-0.1) -> -0.1 | G71: Between | H71: =IF(Dashboard!D15="","",-0.1) -> -0.1 | I71: and | J71: =IF(Dashboard!D15="","",-0.02) -> -0.02 | L71: More than | M71: =IF(Dashboard!D15="","",-0.02) -> -0.02
B74: =IF(OR($B$3="- an alternative provision school",$B$3="- a special school",$B$3="- a nursery school"),"","Average class size") -> Average class size | D74: =IF(B74="","","Less than or equal to") -> Less than or equal to | E74: =IF(Dashboard!D15="","",INDEX(INDIRECT(INDEX(Calcs!$D:$D,MATCH(Dashboard!D15,Calcs!$A:$A,0))),12,1)) -> 24.5 | G74: =IF(B74="","","Between") -> Between | H74: =IF(Dashboard!D15="","",INDEX(INDIRECT(INDEX(Calcs!$D:$D,MATCH(Dashboard!D15,Calcs!$A:$A,0))),12,1)) -> 24.5 | I74: =IF(B74="","","and") -> and | J74: =IF(Dashboard!D15="","",INDEX(INDIRECT(INDEX(Calcs!$D:$D,MATCH(Dashboard!D15,Calcs!$A:$A,0))),12,2)) -> 25.5 | L74: =IF(B74="","","Between") -> Between | M74: =IF(Dashboard!D15="","",INDEX(INDIRECT(INDEX(Calcs!$D:$D,MATCH(Dashboard!D15,Calcs!$A:$A,0))),12,2)) -> 25.5 | N74: =IF(B74="","","and") -> and | O74: =IF(Dashboard!D15="","",INDEX(INDIRECT(INDEX(Calcs!$D:$D,MATCH(Dashboard!D15,Calcs!$A:$A,0))),12,3)) -> 27 | Q74: =IF(B74="","","Between") -> Between | R74: =IF(Dashboard!D15="","",INDEX(INDIRECT(INDEX(Calcs!$D:$D,MATCH(Dashboard!D15,Calcs!$A:$A,0))),12,3)) -> 27 | S74: =IF(B74="","","and") -> and | T74: =IF(Dashboard!D15="","",INDEX(INDIRECT(INDEX(Calcs!$D:$D,MATCH(Dashboard!D15,Calcs!$A:$A,0))),12,5)) -> 28
D75: =IF(B74="","","Or more than") -> Or more than | E75: =IF(Dashboard!D15="","",INDEX(INDIRECT(INDEX(Calcs!$D:$D,MATCH(Dashboard!D15,Calcs!$A:$A,0))),12,7)) -> 29.5 | G75: =IF(B74="","","Or between") -> Or between | H75: =IF(Dashboard!D15="","",INDEX(INDIRECT(INDEX(Calcs!$D:$D,MATCH(Dashboard!D15,Calcs!$A:$A,0))),12,6)) -> 29 | I75: =IF(B74="","","and") -> and | J75: =IF(Dashboard!D15="","",INDEX(INDIRECT(INDEX(Calcs!$D:$D,MATCH(Dashboard!D15,Calcs!$A:$A,0))),12,7)) -> 29.5 | L75: =IF(B74="","","Or between") -> Or between | M75: =IF(Dashboard!D15="","",INDEX(INDIRECT(INDEX(Calcs!$D:$D,MATCH(Dashboard!D15,Calcs!$A:$A,0))),12,5)) -> 28 | N75: =IF(B74="","","and") -> and | O75: =IF(Dashboard!D15="","",INDEX(INDIRECT(INDEX(Calcs!$D:$D,MATCH(Dashboard!D15,Calcs!$A:$A,0))),12,6)) -> 29
B78: E. Outcomes
D80: Red rating | G80: Amber rating | L80: Light green rating | Q80: Dark green rating
B82: Ofsted rating | D82: School is rated | G82: School is rated | L82: School is rated | Q82: School is rated
D83: =IF(Dashboard!D15="","","Inadequate") -> Inadequate | G83: =IF(Dashboard!D15="","","Requires Improvement (RI)") -> Requires Improvement (RI) | L83: =IF(Dashboard!D15="","","Good") -> Good | Q83: =IF(Dashboard!D15="","","Outstanding") -> Outstanding
B85: =IF(OR($B$3="- a primary school",$B$3="- a nursery school"),"","Progress 8 score") ->  | D85: =IF(B85="","","Less than or equal to") ->  | E85: =IF(OR(Dashboard!D15="",B85=""),"",-0.5) ->  | G85: =IF(B85="","","Between") ->  | H85: =IF(OR(Dashboard!D15="",B85=""),"",-0.5) ->  | I85: =IF(B85="","","and") ->  | J85: =IF(OR(Dashboard!D15="",B85=""),"",0) ->  | L85: =IF(B85="","","Between") ->  | M85: =IF(OR(Dashboard!D15="",B85=""),"",0) ->  | N85: =IF(B85="","","and") ->  | O85: =IF(OR(Dashboard!D15="",B85=""),"",0.5) ->  | Q85: =IF(B85="","","More than") ->  | R85: =IF(OR(Dashboard!D15="",B85=""),"",0.5) -> 
B88: =IF(OR($B$3="- a secondary school with a sixth form", $B$3="- a secondary school without a sixth form",$B$3="- a nursery school"),"","Progress score in reading") -> Progress score in reading | D88: =IF(B88="","","Less than or equal to") -> Less than or equal to | E88: =IF(OR(Dashboard!D15="",B88=""),"",-2.7) -> -2.7 | G88: =IF(B88="","","Between") -> Between | H88: =IF(OR(Dashboard!D15="",B88=""),"",-2.7) -> -2.7 | I88: =IF(B88="","","and") -> and | J88: =IF(OR(Dashboard!D15="",B88=""),"",0) -> 0 | L88: =IF(B88="","","Between") -> Between | M88: =IF(OR(Dashboard!D15="",B88=""),"",0) -> 0 | N88: =IF(B88="","","and") -> and | O88: =IF(OR(Dashboard!D15="",B88=""),"",3.2) -> 3.2 | Q88: =IF(B88="","","More than") -> More than | R88: =IF(OR(Dashboard!D15="",B88=""),"",3.2) -> 3.2
B91: =IF(OR($B$3="- a secondary school with a sixth form", $B$3="- a secondary school without a sixth form",$B$3="- a nursery school"),"","Progress score in writing") -> Progress score in writing | D91: =IF(B91="","","Less than or equal to") -> Less than or equal to | E91: =IF(OR(Dashboard!D15="",B91=""),"",-2.6) -> -2.6 | G91: =IF(B91="","","Between") -> Between | H91: =IF(OR(Dashboard!D15="",B91=""),"",-2.6) -> -2.6 | I91: =IF(B91="","","and") -> and | J91: =IF(OR(Dashboard!D15="",B91=""),"",0) -> 0 | L91: =IF(B91="","","Between") -> Between | M91: =IF(OR(Dashboard!D15="",B91=""),"",0) -> 0 | N91: =IF(B91="","","and") -> and | O91: =IF(OR(Dashboard!D15="",B91=""),"",2.7) -> 2.7 | Q91: =IF(B91="","","More than") -> More than | R91: =IF(OR(Dashboard!D15="",B91=""),"",2.7) -> 2.7
B94: =IF(OR($B$3="- a secondary school with a sixth form", $B$3="- a secondary school without a sixth form",$B$3="- a nursery school"),"","Progress score in maths") -> Progress score in maths | D94: =IF(B94="","","Less than or equal to") -> Less than or equal to | E94: =IF(OR(Dashboard!D15="",B94=""),"",-3.1) -> -3.1 | G94: =IF(B94="","","Between") -> Between | H94: =IF(OR(Dashboard!D15="",B94=""),"",-3.1) -> -3.1 | I94: =IF(B94="","","and") -> and | J94: =IF(OR(Dashboard!D15="",B94=""),"",0) -> 0 | L94: =IF(B94="","","Between") -> Between | M94: =IF(OR(Dashboard!D15="",B94=""),"",0) -> 0 | N94: =IF(B94="","","and") -> and | O94: =IF(OR(Dashboard!D15="",B94=""),"",3.2) -> 3.2 | Q94: =IF(B94="","","More than") -> More than | R94: =IF(OR(Dashboard!D15="",B94=""),"",3.2) -> 3.2

Sheet RAG rating data for all schools
B1: Expand the groups to see the thresholds
A3: Sample size | B3: Phase | C3: Size | D3: FSM | F3: Red if less than: | G3: Amber if less than: | H3: Dark green if between: | I3: (Median) | J3: and: | K3: Amber if more than: | L3: Red if more than: | N3: Light green for everything else
A4: 726 | B4: Primary | C4: Very small | D4: Low FSM | E4: PVSL
B5: Primary | C5: Very small | D5: Low FSM | E5: Spend on teaching staff as a percentage of total expenditure | F5: 0.395 | G5: 0.42 | H5: 0.455 | I5: 0.47 | J5: 0.485 | K5: 0.515 | L5: 0.54
B6: Primary | C6: Very small | D6: Low FSM | E6: Spend on supply staff as a percentage of total expenditure | H6: 0.02 | I6: 0.02 | J6: 0.025 | K6: 0.04 | L6: 0.055
B7: Primary | C7: Very small | D7: Low FSM | E7: Spend on education support staff as a percentage of total expenditure | H7: 0.125 | I7: 0.13 | J7: 0.145 | K7: 0.17 | L7: 0.19
B8: Primary | C8: Very small | D8: Low FSM | E8: Spend on administrative and clerical staff as a percentage of total expenditure | I8: 0.055 | K8: 0.075 | L8: 0.085
B9: Primary | C9: Very small | D9: Low FSM | E9: Spend on other staff costs as a percentage of total expenditure | I9: 0.03 | K9: 0.05 | L9: 0.06
B10: Primary | C10: Very small | D10: Low FSM | E10: Spend on premises (including staff costs) as a percentage of total expenditure | I10: 0.05 | K10: 0.065 | L10: 0.08
B11: Primary | C11: Very small | D11: Low FSM | E11: Spend on teaching resources as a percentage of total expenditure | F11: 0.03 | G11: 0.04 | H11: 0.05 | I11: 0.055 | J11: 0.065
B12: Primary | C12: Very small | D12: Low FSM | E12: Spend on energy as a percentage of total expenditure | I12: 0.01 | K12: 0.015 | L12: 0.02
B13: Primary | C13: Very small | D13: Low FSM | E13: Senior leaders as a percentage of workforce | H13: 0.115 | I13: 0.125 | J13: 0.14 | K13: 0.175 | L13: 0.21
B14: Primary | C14: Very small | D14: Low FSM | E14: Pupil to teacher ratio | F14: 12 | G14: 14 | H14: 16 | I14: 17 | J14: 18 | K14: 20 | L14: 22.5
B15: Primary | C15: Very small | D15: Low FSM | E15: Pupil to adult ratio | F15: 6 | G15: 7 | H15: 8 | I15: 8.5 | J15: 9 | K15: 10 | L15: 11
B16: Primary | C16: Very small | D16: Low FSM | E16: Average class size | F16: 14.5 | G16: 17 | H16: 20.5 | I16: 21 | J16: 22.5 | K16: 24.5 | L16: 26
A18: 698 | B18: Primary | C18: Small | D18: Low FSM | E18: PSL
B19: Primary | C19: Small | D19: Low FSM | E19: Spend on teaching staff as a percentage of total expenditure | F19: 0.405 | G19: 0.43 | H19: 0.46 | I19: 0.47 | J19: 0.48 | K19: 0.515 | L19: 0.535
B20: Primary | C20: Small | D20: Low FSM | E20: Spend on supply staff as a percentage of total expenditure | H20: 0.02 | I20: 0.02 | J20: 0.025 | K20: 0.04 | L20: 0.055
B21: Primary | C21: Small | D21: Low FSM | E21: Spend on education support staff as a percentage of total expenditure | H21: 0.135 | I21: 0.145 | J21: 0.155 | K21: 0.175 | L21: 0.195
B22: Primary | C22: Small | D22: Low FSM | E22: Spend on administrative and clerical staff as a percentage of total expenditure | I22: 0.05 | K22: 0.065 | L22: 0.075
B23: Primary | C23: Small | D23: Low FSM | E23: Spend on other staff costs as a percentage of total expenditure | I23: 0.03 | K23: 0.05 | L23: 0.065
B24: Primary | C24: Small | D24: Low FSM | E24: Spend on premises (including staff costs) as a percentage of total expenditure | I24: 0.05 | K24: 0.06 | L24: 0.07
B25: Primary | C25: Small | D25: Low FSM | E25: Spend on teaching resources as a percentage of total expenditure | F25: 0.03 | G25: 0.04 | H25: 0.05 | I25: 0.055 | J25: 0.06
B26: Primary | C26: Small | D26: Low FSM | E26: Spend on energy as a percentage of total expenditure | I26: 0.01 | K26: 0.015 | L26: 0.02
B27: Primary | C27: Small | D27: Low FSM | E27: Senior leaders as a percentage of workforce | H27: 0.1 | I27: 0.115 | J27: 0.125 | K27: 0.155 | L27: 0.18
B28: Primary | C28: Small | D28: Low FSM | E28: Pupil to teacher ratio | F28: 17 | G28: 18.5 | H28: 19.5 | I28: 20.5 | J28: 21 | K28: 22.5 | L28: 24
B29: Primary | C29: Small | D29: Low FSM | E29: Pupil to adult ratio | F29: 8 | G29: 8.5 | H29: 9 | I29: 9.5 | J29: 10 | K29: 11 | L29: 12
B30: Primary | C30: Small | D30: Low FSM | E30: Average class size | F30: 21.5 | G30: 23 | H30: 25 | I30: 26 | J30: 26.5 | K30: 28 | L30: 29
A32: 1757 | B32: Primary | C32: Medium | D32: Low FSM | E32: PML
B33: Primary | C33: Medium | D33: Low FSM | E33: Spend on teaching staff as a percentage of total expenditure | F33: 0.405 | G33: 0.425 | H33: 0.455 | I33: 0.465 | J33: 0.48 | K33: 0.505 | L33: 0.525
B34: Primary | C34: Medium | D34: Low FSM | E34: Spend on supply staff as a percentage of total expenditure | H34: 0.02 | I34: 0.02 | J34: 0.025 | K34: 0.04 | L34: 0.05
B35: Primary | C35: Medium | D35: Low FSM | E35: Spend on education support staff as a percentage of total expenditure | H35: 0.145 | I35: 0.155 | J35: 0.165 | K35: 0.19 | L35: 0.21
B36: Primary | C36: Medium | D36: Low FSM | E36: Spend on administrative and clerical staff as a percentage of total expenditure | I36: 0.05 | K36: 0.06 | L36: 0.07
B37: Primary | C37: Medium | D37: Low FSM | E37: Spend on other staff costs as a percentage of total expenditure | I37: 0.035 | K37: 0.05 | L37: 0.065
B38: Primary | C38: Medium | D38: Low FSM | E38: Spend on premises (including staff costs) as a percentage of total expenditure | I38: 0.05 | K38: 0.065 | L38: 0.075
B39: Primary | C39: Medium | D39: Low FSM | E39: Spend on teaching resources as a percentage of total expenditure | F39: 0.03 | G39: 0.04 | H39: 0.05 | I39: 0.055 | J39: 0.06
B40: Primary | C40: Medium | D40: Low FSM | E40: Spend on energy as a percentage of total expenditure | I40: 0.01 | K40: 0.015 | L40: 0.02
B41: Primary | C41: Medium | D41: Low FSM | E41: Senior leaders as a percentage of workforce | H41: 0.09 | I41: 0.095 | J41: 0.1 | K41: 0.115 | L41: 0.135
B42: Primary | C42: Medium | D42: Low FSM | E42: Pupil to teacher ratio | F42: 19.5 | G42: 20.5 | H42: 22 | I42: 22.5 | J42: 23 | K42: 24.5 | L42: 26
B43: Primary | C43: Medium | D43: Low FSM | E43: Pupil to adult ratio | F43: 8.5 | G43: 9.5 | H43: 10 | I43: 10.5 | J43: 11 | K43: 12 | L43: 12.5
B44: Primary | C44: Medium | D44: Low FSM | E44: Average class size | F44: 26 | G44: 27 | H44: 28.5 | I44: 29 | J44: 29.5 | K44: 30 | L44: 30.5
A46: 650 | B46: Primary | C46: Large | D46: Low FSM | E46: PLL
B47: Primary | C47: Large | D47: Low FSM | E47: Spend on teaching staff as a percentage of total expenditure | F47: 0.42 | G47: 0.445 | H47: 0.47 | I47: 0.48 | J47: 0.49 | K47: 0.51 | L47: 0.53
B48: Primary | C48: Large | D48: Low FSM | E48: Spend on supply staff as a percentage of total expenditure | H48: 0.015 | I48: 0.02 | J48: 0.025 | K48: 0.035 | L48: 0.05
B49: Primary | C49: Large | D49: Low FSM | E49: Spend on education support staff as a percentage of total expenditure | H49: 0.155 | I49: 0.16 | J49: 0.17 | K49: 0.195 | L49: 0.21
B50: Primary | C50: Large | D50: Low FSM | E50: Spend on administrative and clerical staff as a percentage of total expenditure | I50: 0.045 | K50: 0.06 | L50: 0.07
B51: Primary | C51: Large | D51: Low FSM | E51: Spend on other staff costs as a percentage of total expenditure | I51: 0.035 | K51: 0.05 | L51: 0.06
B52: Primary | C52: Large | D52: Low FSM | E52: Spend on premises (including staff costs) as a percentage of total expenditure | I52: 0.05 | K52: 0.06 | L52: 0.07
B53: Primary | C53: Large | D53: Low FSM | E53: Spend on teaching resources as a percentage of total expenditure | F53: 0.03 | G53: 0.04 | H53: 0.045 | I53: 0.05 | J53: 0.055
B54: Primary | C54: Large | D54: Low FSM | E54: Spend on energy as a percentage of total expenditure | I54: 0.01 | K54: 0.015 | L54: 0.02
B55: Primary | C55: Large | D55: Low FSM | E55: Senior leaders as a percentage of workforce | H55: 0.06 | I55: 0.07 | J55: 0.075 | K55: 0.09 | L55: 0.1
B56: Primary | C56: Large | D56: Low FSM | E56: Pupil to teacher ratio | F56: 20.5 | G56: 21.5 | H56: 22.5 | I56: 23 | J56: 24 | K56: 25 | L56: 26.5
B57: Primary | C57: Large | D57: Low FSM | E57: Pupil to adult ratio | F57: 9.5 | G57: 10 | H57: 11 | I57: 11 | J57: 11.5 | K57: 12.5 | L57: 13
B58: Primary | C58: Large | D58: Low FSM | E58: Average class size | F58: 28 | G58: 28.5 | H58: 29 | I58: 29.5 | J58: 29.5 | K58: 30 | L58: 30.5
A60: 880 | B60: Primary | C60: Very small | D60: Medium FSM | E60: PVSM
B61: Primary | C61: Very small | D61: Medium FSM | E61: Spend on teaching staff as a percentage of total expenditure | F61: 0.38 | G61: 0.415 | H61: 0.445 | I61: 0.455 | J61: 0.475 | K61: 0.51 | L61: 0.535
B62: Primary | C62: Very small | D62: Medium FSM | E62: Spend on supply staff as a percentage of total expenditure | H62: 0.02 | I62: 0.025 | J62: 0.03 | K62: 0.045 | L62: 0.065
B63: Primary | C63: Very small | D63: Medium FSM | E63: Spend on education support staff as a percentage of total expenditure | H63: 0.13 | I63: 0.145 | J63: 0.155 | K63: 0.18 | L63: 0.2
B64: Primary | C64: Very small | D64: Medium FSM | E64: Spend on administrative and clerical staff as a percentage of total expenditure | I64: 0.055 | K64: 0.07 | L64: 0.085
B65: Primary | C65: Very small | D65: Medium FSM | E65: Spend on other staff costs as a percentage of total expenditure | I65: 0.035 | K65: 0.05 | L65: 0.065
B66: Primary | C66: Very small | D66: Medium FSM | E66: Spend on premises (including staff costs) as a percentage of total expenditure | I66: 0.05 | K66: 0.065 | L66: 0.075
B67: Primary | C67: Very small | D67: Medium FSM | E67: Spend on teaching resources as a percentage of total expenditure | F67: 0.03 | G67: 0.04 | H67: 0.05 | I67: 0.055 | J67: 0.06
B68: Primary | C68: Very small | D68: Medium FSM | E68: Spend on energy as a percentage of total expenditure | I68: 0.01 | K68: 0.015 | L68: 0.02
B69: Primary | C69: Very small | D69: Medium FSM | E69: Senior leaders as a percentage of workforce | H69: 0.105 | I69: 0.12 | J69: 0.135 | K69: 0.175 | L69: 0.205
B70: Primary | C70: Very small | D70: Medium FSM | E70: Pupil to teacher ratio | F70: 12 | G70: 14 | H70: 16 | I70: 17 | J70: 17.5 | K70: 20 | L70: 21.5
B71: Primary | C71: Very small | D71: Medium FSM | E71: Pupil to adult ratio | F71: 5.5 | G71: 6.5 | H71: 7.5 | I71: 8 | J71: 8.5 | K71: 9.5 | L71: 10.5
B72: Primary | C72: Very small | D72: Medium FSM | E72: Average class size | F72: 14.5 | G72: 17 | H72: 20 | I72: 21.5 | J72: 22.5 | K72: 24.5 | L72: 26
A74: 994 | B74: Primary | C74: Small | D74: Medium FSM | E74: PSM
B75: Primary | C75: Small | D75: Medium FSM | E75: Spend on teaching staff as a percentage of total expenditure | F75: 0.385 | G75: 0.41 | H75: 0.445 | I75: 0.455 | J75: 0.47 | K75: 0.495 | L75: 0.525
B76: Primary | C76: Small | D76: Medium FSM | E76: Spend on supply staff as a percentage of total expenditure | H76: 0.02 | I76: 0.025 | J76: 0.03 | K76: 0.04 | L76: 0.055
B77: Primary | C77: Small | D77: Medium FSM | E77: Spend on education support staff as a percentage of total expenditure | H77: 0.15 | I77: 0.16 | J77: 0.17 | K77: 0.195 | L77: 0.22
B78: Primary | C78: Small | D78: Medium FSM | E78: Spend on administrative and clerical staff as a percentage of total expenditure | I78: 0.05 | K78: 0.065 | L78: 0.075
B79: Primary | C79: Small | D79: Medium FSM | E79: Spend on other staff costs as a percentage of total expenditure | I79: 0.035 | K79: 0.05 | L79: 0.065
B80: Primary | C80: Small | D80: Medium FSM | E80: Spend on premises (including staff costs) as a percentage of total expenditure | I80: 0.05 | K80: 0.065 | L80: 0.075
B81: Primary | C81: Small | D81: Medium FSM | E81: Spend on teaching resources as a percentage of total expenditure | F81: 0.03 | G81: 0.035 | H81: 0.045 | I81: 0.05 | J81: 0.055
B82: Primary | C82: Small | D82: Medium FSM | E82: Spend on energy as a percentage of total expenditure | I82: 0.01 | K82: 0.015 | L82: 0.02
B83: Primary | C83: Small | D83: Medium FSM | E83: Senior leaders as a percentage of workforce | H83: 0.095 | I83: 0.11 | J83: 0.12 | K83: 0.14 | L83: 0.165
B84: Primary | C84: Small | D84: Medium FSM | E84: Pupil to teacher ratio | F84: 16.5 | G84: 17.5 | H84: 19 | I84: 20 | J84: 20.5 | K84: 22.5 | L84: 24
B85: Primary | C85: Small | D85: Medium FSM | E85: Pupil to adult ratio | F85: 7 | G85: 8 | H85: 8.5 | I85: 9 | J85: 9.5 | K85: 10.5 | L85: 11.5
B86: Primary | C86: Small | D86: Medium FSM | E86: Average class size | F86: 21.5 | G86: 23 | H86: 24.5 | I86: 25.5 | J86: 26.5 | K86: 28 | L86: 29
A88: 3735 | B88: Primary | C88: Medium | D88: Medium FSM | E88: PMM
B89: Primary | C89: Medium | D89: Medium FSM | E89: Spend on teaching staff as a percentage of total expenditure | F89: 0.39 | G89: 0.415 | H89: 0.44 | I89: 0.455 | J89: 0.465 | K89: 0.495 | L89: 0.515
B90: Primary | C90: Medium | D90: Medium FSM | E90: Spend on supply staff as a percentage of total expenditure | H90: 0.02 | I90: 0.025 | J90: 0.03 | K90: 0.04 | L90: 0.055
B91: Primary | C91: Medium | D91: Medium FSM | E91: Spend on education support staff as a percentage of total expenditure | H91: 0.165 | I91: 0.175 | J91: 0.185 | K91: 0.21 | L91: 0.235
B92: Primary | C92: Medium | D92: Medium FSM | E92: Spend on administrative and clerical staff as a percentage of total expenditure | I92: 0.045 | K92: 0.06 | L92: 0.07
B93: Primary | C93: Medium | D93: Medium FSM | E93: Spend on other staff costs as a percentage of total expenditure | I93: 0.035 | K93: 0.05 | L93: 0.06
B94: Primary | C94: Medium | D94: Medium FSM | E94: Spend on premises (including staff costs) as a percentage of total expenditure | I94: 0.05 | K94: 0.065 | L94: 0.075
B95: Primary | C95: Medium | D95: Medium FSM | E95: Spend on teaching resources as a percentage of total expenditure | F95: 0.03 | G95: 0.035 | H95: 0.045 | I95: 0.05 | J95: 0.055
B96: Primary | C96: Medium | D96: Medium FSM | E96: Spend on energy as a percentage of total expenditure | I96: 0.01 | K96: 0.015 | L96: 0.02
B97: Primary | C97: Medium | D97: Medium FSM | E97: Senior leaders as a percentage of workforce | H97: 0.08 | I97: 0.085 | J97: 0.095 | K97: 0.11 | L97: 0.13
B98: Primary | C98: Medium | D98: Medium FSM | E98: Pupil to teacher ratio | F98: 18 | G98: 19.5 | H98: 21 | I98: 21.5 | J98: 22.5 | K98: 24 | L98: 25.5
B99: Primary | C99: Medium | D99: Medium FSM | E99: Pupil to adult ratio | F99: 8 | G99: 8.5 | H99: 9.5 | I99: 9.5 | J99: 10 | K99: 11 | L99: 11.5
B100: Primary | C100: Medium | D100: Medium FSM | E100: Average class size | F100: 24.5 | G100: 26 | H100: 27.5 | I100: 28 | J100: 28.5 | K100: 29.5 | L100: 30
A102: 2027 | B102: Primary | C102: Large | D102: Medium FSM | E102: PLM
B103: Primary | C103: Large | D103: Medium FSM | E103: Spend on teaching staff as a percentage of total expenditure | F103: 0.385 | G103: 0.41 | H103: 0.445 | I103: 0.455 | J103: 0.47 | K103: 0.495 | L103: 0.52
B104: Primary | C104: Large | D104: Medium FSM | E104: Spend on supply staff as a percentage of total expenditure | H104: 0.02 | I104: 0.02 | J104: 0.03 | K104: 0.04 | L104: 0.055
B105: Primary | C105: Large | D105: Medium FSM | E105: Spend on education support staff as a percentage of total expenditure | H105: 0.175 | I105: 0.185 | J105: 0.195 | K105: 0.22 | L105: 0.245
B106: Primary | C106: Large | D106: Medium FSM | E106: Spend on administrative and clerical staff as a percentage of total expenditure | I106: 0.045 | K106: 0.06 | L106: 0.065
B107: Primary | C107: Large | D107: Medium FSM | E107: Spend on other staff costs as a percentage of total expenditure | I107: 0.035 | K107: 0.05 | L107: 0.06
B108: Primary | C108: Large | D108: Medium FSM | E108: Spend on premises (including staff costs) as a percentage of total expenditure | I108: 0.05 | K108: 0.065 | L108: 0.075
B109: Primary | C109: Large | D109: Medium FSM | E109: Spend on teaching resources as a percentage of total expenditure | F109: 0.03 | G109: 0.035 | H109: 0.045 | I109: 0.045 | J109: 0.05
B110: Primary | C110: Large | D110: Medium FSM | E110: Spend on energy as a percentage of total expenditure | I110: 0.01 | K110: 0.015 | L110: 0.02
B111: Primary | C111: Large | D111: Medium FSM | E111: Senior leaders as a percentage of workforce | H111: 0.06 | I111: 0.065 | J111: 0.075 | K111: 0.09 | L111: 0.105
B112: Primary | C112: Large | D112: Medium FSM | E112: Pupil to teacher ratio | F112: 18.5 | G112: 20 | H112: 21.5 | I112: 22 | J112: 22.5 | K112: 24 | L112: 25
B113: Primary | C113: Large | D113: Medium FSM | E113: Pupil to adult ratio | F113: 8 | G113: 8.5 | H113: 9.5 | I113: 10 | J113: 10 | K113: 11 | L113: 12
B114: Primary | C114: Large | D114: Medium FSM | E114: Average class size | F114: 26 | G114: 27 | H114: 28.5 | I114: 29 | J114: 29 | K114: 29.5 | L114: 30
A116: 214 | B116: Primary | C116: Very small | D116: High FSM | E116: PVSH
B117: Primary | C117: Very small | D117: High FSM | E117: Spend on teaching staff as a percentage of total expenditure | F117: 0.36 | G117: 0.395 | H117: 0.425 | I117: 0.44 | J117: 0.455 | K117: 0.49 | L117: 0.52
B118: Primary | C118: Very small | D118: High FSM | E118: Spend on supply staff as a percentage of total expenditure | H118: 0.02 | I118: 0.025 | J118: 0.03 | K118: 0.055 | L118: 0.08
B119: Primary | C119: Very small | D119: High FSM | E119: Spend on education support staff as a percentage of total expenditure | H119: 0.14 | I119: 0.15 | J119: 0.17 | K119: 0.2 | L119: 0.235
B120: Primary | C120: Very small | D120: High FSM | E120: Spend on administrative and clerical staff as a percentage of total expenditure | I120: 0.05 | K120: 0.07 | L120: 0.085
B121: Primary | C121: Very small | D121: High FSM | E121: Spend on other staff costs as a percentage of total expenditure | I121: 0.035 | K121: 0.05 | L121: 0.065
B122: Primary | C122: Very small | D122: High FSM | E122: Spend on premises (including staff costs) as a percentage of total expenditure | I122: 0.055 | K122: 0.07 | L122: 0.085
B123: Primary | C123: Very small | D123: High FSM | E123: Spend on teaching resources as a percentage of total expenditure | F123: 0.03 | G123: 0.04 | H123: 0.045 | I123: 0.055 | J123: 0.06
B124: Primary | C124: Very small | D124: High FSM | E124: Spend on energy as a percentage of total expenditure | I124: 0.01 | K124: 0.015 | L124: 0.02
B125: Primary | C125: Very small | D125: High FSM | E125: Senior leaders as a percentage of workforce | H125: 0.105 | I125: 0.12 | J125: 0.135 | K125: 0.17 | L125: 0.2
B126: Primary | C126: Very small | D126: High FSM | E126: Pupil to teacher ratio | F126: 11 | G126: 13 | H126: 15.5 | I126: 16 | J126: 17 | K126: 19 | L126: 20
B127: Primary | C127: Very small | D127: High FSM | E127: Pupil to adult ratio | F127: 5 | G127: 5.5 | H127: 6.5 | I127: 7 | J127: 7.5 | K127: 8.5 | L127: 9
B128: Primary | C128: Very small | D128: High FSM | E128: Average class size | F128: 13 | G128: 16.5 | H128: 19.5 | I128: 21 | J128: 22.5 | K128: 24 | L128: 25.5
A130: 370 | B130: Primary | C130: Small | D130: High FSM | E130: PSH
B131: Primary | C131: Small | D131: High FSM | E131: Spend on teaching staff as a percentage of total expenditure | F131: 0.365 | G131: 0.39 | H131: 0.42 | I131: 0.435 | J131: 0.45 | K131: 0.48 | L131: 0.515
B132: Primary | C132: Small | D132: High FSM | E132: Spend on supply staff as a percentage of total expenditure | H132: 0.02 | I132: 0.025 | J132: 0.035 | K132: 0.055 | L132: 0.075
B133: Primary | C133: Small | D133: High FSM | E133: Spend on education support staff as a percentage of total expenditure | H133: 0.165 | I133: 0.175 | J133: 0.185 | K133: 0.215 | L133: 0.23
B134: Primary | C134: Small | D134: High FSM | E134: Spend on administrative and clerical staff as a percentage of total expenditure | I134: 0.045 | K134: 0.065 | L134: 0.075
B135: Primary | C135: Small | D135: High FSM | E135: Spend on other staff costs as a percentage of total expenditure | I135: 0.035 | K135: 0.05 | L135: 0.065
B136: Primary | C136: Small | D136: High FSM | E136: Spend on premises (including staff costs) as a percentage of total expenditure | I136: 0.055 | K136: 0.07 | L136: 0.08
B137: Primary | C137: Small | D137: High FSM | E137: Spend on teaching resources as a percentage of total expenditure | F137: 0.025 | G137: 0.035 | H137: 0.045 | I137: 0.05 | J137: 0.055
B138: Primary | C138: Small | D138: High FSM | E138: Spend on energy as a percentage of total expenditure | I138: 0.01 | K138: 0.015 | L138: 0.02
B139: Primary | C139: Small | D139: High FSM | E139: Senior leaders as a percentage of workforce | H139: 0.095 | I139: 0.105 | J139: 0.115 | K139: 0.135 | L139: 0.155
B140: Primary | C140: Small | D140: High FSM | E140: Pupil to teacher ratio | F140: 15 | G140: 16 | H140: 17.5 | I140: 18 | J140: 19 | K140: 21 | L140: 22.5
B141: Primary | C141: Small | D141: High FSM | E141: Pupil to adult ratio | F141: 6.5 | G141: 7 | H141: 7.5 | I141: 8 | J141: 8.5 | K141: 9 | L141: 10
B142: Primary | C142: Small | D142: High FSM | E142: Average class size | F142: 19 | G142: 20.5 | H142: 22.5 | I142: 23 | J142: 24 | K142: 26.5 | L142: 28
A144: 2197 | B144: Primary | C144: Medium | D144: High FSM | E144: PMH
B145: Primary | C145: Medium | D145: High FSM | E145: Spend on teaching staff as a percentage of total expenditure | F145: 0.36 | G145: 0.385 | H145: 0.41 | I145: 0.425 | J145: 0.435 | K145: 0.465 | L145: 0.49
B146: Primary | C146: Medium | D146: High FSM | E146: Spend on supply staff as a percentage of total expenditure | H146: 0.02 | I146: 0.025 | J146: 0.03 | K146: 0.045 | L146: 0.065
B147: Primary | C147: Medium | D147: High FSM | E147: Spend on education support staff as a percentage of total expenditure | H147: 0.185 | I147: 0.2 | J147: 0.21 | K147: 0.235 | L147: 0.26
B148: Primary | C148: Medium | D148: High FSM | E148: Spend on administrative and clerical staff as a percentage of total expenditure | I148: 0.045 | K148: 0.06 | L148: 0.075
B149: Primary | C149: Medium | D149: High FSM | E149: Spend on other staff costs as a percentage of total expenditure | I149: 0.035 | K149: 0.05 | L149: 0.06
B150: Primary | C150: Medium | D150: High FSM | E150: Spend on premises (including staff costs) as a percentage of total expenditure | I150: 0.055 | K150: 0.07 | L150: 0.08
B151: Primary | C151: Medium | D151: High FSM | E151: Spend on teaching resources as a percentage of total expenditure | F151: 0.025 | G151: 0.035 | H151: 0.04 | I151: 0.045 | J151: 0.05
B152: Primary | C152: Medium | D152: High FSM | E152: Spend on energy as a percentage of total expenditure | I152: 0.01 | K152: 0.015 | L152: 0.02
B153: Primary | C153: Medium | D153: High FSM | E153: Senior leaders as a percentage of workforce | H153: 0.075 | I153: 0.08 | J153: 0.09 | K153: 0.11 | L153: 0.13
B154: Primary | C154: Medium | D154: High FSM | E154: Pupil to teacher ratio | F154: 16 | G154: 17.5 | H154: 19 | I154: 19.5 | J154: 20.5 | K154: 22.5 | L154: 24
B155: Primary | C155: Medium | D155: High FSM | E155: Pupil to adult ratio | F155: 6.5 | G155: 7.5 | H155: 8 | I155: 8.5 | J155: 8.5 | K155: 9.5 | L155: 10
B156: Primary | C156: Medium | D156: High FSM | E156: Average class size | F156: 22.5 | G156: 23.5 | H156: 25.5 | I156: 26.5 | J156: 27 | K156: 28.5 | L156: 29.5
A158: 1120 | B158: Primary | C158: Large | D158: High FSM | E158: PLH
B159: Primary | C159: Large | D159: High FSM | E159: Spend on teaching staff as a percentage of total expenditure | F159: 0.355 | G159: 0.38 | H159: 0.41 | I159: 0.425 | J159: 0.435 | K159: 0.465 | L159: 0.49
B160: Primary | C160: Large | D160: High FSM | E160: Spend on supply staff as a percentage of total expenditure | H160: 0.02 | I160: 0.025 | J160: 0.03 | K160: 0.045 | L160: 0.06
B161: Primary | C161: Large | D161: High FSM | E161: Spend on education support staff as a percentage of total expenditure | H161: 0.195 | I161: 0.205 | J161: 0.22 | K161: 0.25 | L161: 0.265
B162: Primary | C162: Large | D162: High FSM | E162: Spend on administrative and clerical staff as a percentage of total expenditure | I162: 0.045 | K162: 0.06 | L162: 0.075
B163: Primary | C163: Large | D163: High FSM | E163: Spend on other staff costs as a percentage of total expenditure | I163: 0.035 | K163: 0.045 | L163: 0.06
B164: Primary | C164: Large | D164: High FSM | E164: Spend on premises (including staff costs) as a percentage of total expenditure | I164: 0.05 | K164: 0.07 | L164: 0.08
B165: Primary | C165: Large | D165: High FSM | E165: Spend on teaching resources as a percentage of total expenditure | F165: 0.025 | G165: 0.03 | H165: 0.04 | I165: 0.045 | J165: 0.05
B166: Primary | C166: Large | D166: High FSM | E166: Spend on energy as a percentage of total expenditure | I166: 0.01 | K166: 0.015 | L166: 0.02
B167: Primary | C167: Large | D167: High FSM | E167: Senior leaders as a percentage of workforce | H167: 0.065 | I167: 0.07 | J167: 0.075 | K167: 0.09 | L167: 0.105
B168: Primary | C168: Large | D168: High FSM | E168: Pupil to teacher ratio | F168: 17 | G168: 18 | H168: 20 | I168: 20.5 | J168: 21 | K168: 23 | L168: 24.5
B169: Primary | C169: Large | D169: High FSM | E169: Pupil to adult ratio | F169: 7 | G169: 7.5 | H169: 8 | I169: 8.5 | J169: 9 | K169: 9.5 | L169: 10.5
B170: Primary | C170: Large | D170: High FSM | E170: Average class size | F170: 24.5 | G170: 25.5 | H170: 27 | I170: 27.5 | J170: 28 | K170: 29 | L170: 29.5
A173: Sample size | B173: Phase | C173: Size | D173: FSM | F173: Red if less than: | G173: Amber if less than: | H173: Dark green if between: | I173: (Median) | J173: and: | K173: Amber if more than: | L173: Red if more than: | N173: Light green for everything else
A174: 59 | B174: Secondary with sixth form | C174: Small | D174: Low FSM | E174: SSSL
B175: Secondary with sixth form | C175: Small | D175: Low FSM | E175: Spend on teaching staff as a percentage of total expenditure | F175: 0.455 | G175: 0.49 | H175: 0.54 | I175: 0.56 | J175: 0.57 | K175: 0.61 | L175: 0.625
B176: Secondary with sixth form | C176: Small | D176: Low FSM | E176: Spend on supply staff as a percentage of total expenditure | H176: 0.01 | I176: 0.015 | J176: 0.02 | K176: 0.03 | L176: 0.04
B177: Secondary with sixth form | C177: Small | D177: Low FSM | E177: Spend on education support staff as a percentage of total expenditure | H177: 0.05 | I177: 0.06 | J177: 0.07 | K177: 0.09 | L177: 0.11
B178: Secondary with sixth form | C178: Small | D178: Low FSM | E178: Spend on administrative and clerical staff as a percentage of total expenditure | I178: 0.065 | K178: 0.09 | L178: 0.1
B179: Secondary with sixth form | C179: Small | D179: Low FSM | E179: Spend on other staff costs as a percentage of total expenditure | I179: 0.01 | K179: 0.045 | L179: 0.07
B180: Secondary with sixth form | C180: Small | D180: Low FSM | E180: Spend on premises (including staff costs) as a percentage of total expenditure | I180: 0.05 | K180: 0.075 | L180: 0.085
B181: Secondary with sixth form | C181: Small | D181: Low FSM | E181: Spend on teaching resources as a percentage of total expenditure | F181: 0.05 | G181: 0.06 | H181: 0.07 | I181: 0.075 | J181: 0.085
B182: Secondary with sixth form | C182: Small | D182: Low FSM | E182: Spend on energy as a percentage of total expenditure | I182: 0.01 | K182: 0.015 | L182: 0.02
B183: Secondary with sixth form | C183: Small | D183: Low FSM | E183: Senior leaders as a percentage of workforce | H183: 0.06 | I183: 0.065 | J183: 0.07 | K183: 0.09 | L183: 0.14
B184: Secondary with sixth form | C184: Small | D184: Low FSM | E184: Pupil to teacher ratio | F184: 12 | G184: 13.5 | H184: 15.5 | I184: 16 | J184: 17 | K184: 18 | L184: 18.5
B185: Secondary with sixth form | C185: Small | D185: Low FSM | E185: Pupil to adult ratio | F185: 7.5 | G185: 8.5 | H185: 10 | I185: 10 | J185: 10.5 | K185: 11.5 | L185: 12
B186: Secondary with sixth form | C186: Small | D186: Low FSM | E186: Average class size | F186: 14 | G186: 18 | H186: 19.5 | I186: 19.5 | J186: 20.5 | K186: 22 | L186: 23
A188: 304 | B188: Secondary with sixth form | C188: Medium | D188: Low FSM | E188: SSML
B189: Secondary with sixth form | C189: Medium | D189: Low FSM | E189: Spend on teaching staff as a percentage of total expenditure | F189: 0.495 | G189: 0.525 | H189: 0.555 | I189: 0.56 | J189: 0.575 | K189: 0.61 | L189: 0.63
B190: Secondary with sixth form | C190: Medium | D190: Low FSM | E190: Spend on supply staff as a percentage of total expenditure | H190: 0.01 | I190: 0.01 | J190: 0.015 | K190: 0.02 | L190: 0.025
B191: Secondary with sixth form | C191: Medium | D191: Low FSM | E191: Spend on education support staff as a percentage of total expenditure | H191: 0.07 | I191: 0.075 | J191: 0.08 | K191: 0.1 | L191: 0.11
B192: Secondary with sixth form | C192: Medium | D192: Low FSM | E192: Spend on administrative and clerical staff as a percentage of total expenditure | I192: 0.065 | K192: 0.085 | L192: 0.1
B193: Secondary with sixth form | C193: Medium | D193: Low FSM | E193: Spend on other staff costs as a percentage of total expenditure | I193: 0.015 | K193: 0.03 | L193: 0.055
B194: Secondary with sixth form | C194: Medium | D194: Low FSM | E194: Spend on premises (including staff costs) as a percentage of total expenditure | I194: 0.055 | K194: 0.07 | L194: 0.08
B195: Secondary with sixth form | C195: Medium | D195: Low FSM | E195: Spend on teaching resources as a percentage of total expenditure | F195: 0.05 | G195: 0.06 | H195: 0.075 | I195: 0.085 | J195: 0.09
B196: Secondary with sixth form | C196: Medium | D196: Low FSM | E196: Spend on energy as a percentage of total expenditure | I196: 0.01 | K196: 0.015 | L196: 0.02
B197: Secondary with sixth form | C197: Medium | D197: Low FSM | E197: Senior leaders as a percentage of workforce | H197: 0.055 | I197: 0.06 | J197: 0.065 | K197: 0.075 | L197: 0.085
B198: Secondary with sixth form | C198: Medium | D198: Low FSM | E198: Pupil to teacher ratio | F198: 15 | G198: 15.5 | H198: 16.5 | I198: 17 | J198: 17.5 | K198: 18.5 | L198: 19
B199: Secondary with sixth form | C199: Medium | D199: Low FSM | E199: Pupil to adult ratio | F199: 9 | G199: 9.5 | H199: 10.5 | I199: 10.5 | J199: 11 | K199: 11.5 | L199: 12.5
B200: Secondary with sixth form | C200: Medium | D200: Low FSM | E200: Average class size | F200: 19.5 | G200: 20 | H200: 21 | I200: 21.5 | J200: 21.5 | K200: 22.5 | L200: 23.5
A202: 206 | B202: Secondary with sixth form | C202: Large | D202: Low FSM | E202: SSLL
B203: Secondary with sixth form | C203: Large | D203: Low FSM | E203: Spend on teaching staff as a percentage of total expenditure | F203: 0.505 | G203: 0.53 | H203: 0.56 | I203: 0.575 | J203: 0.59 | K203: 0.61 | L203: 0.625
B204: Secondary with sixth form | C204: Large | D204: Low FSM | E204: Spend on supply staff as a percentage of total expenditure | H204: 0.01 | I204: 0.01 | J204: 0.015 | K204: 0.02 | L204: 0.03
B205: Secondary with sixth form | C205: Large | D205: Low FSM | E205: Spend on education support staff as a percentage of total expenditure | H205: 0.075 | I205: 0.08 | J205: 0.09 | K205: 0.11 | L205: 0.12
B206: Secondary with sixth form | C206: Large | D206: Low FSM | E206: Spend on administrative and clerical staff as a percentage of total expenditure | I206: 0.06 | K206: 0.08 | L206: 0.095
B207: Secondary with sixth form | C207: Large | D207: Low FSM | E207: Spend on other staff costs as a percentage of total expenditure | I207: 0.015 | K207: 0.035 | L207: 0.055
B208: Secondary with sixth form | C208: Large | D208: Low FSM | E208: Spend on premises (including staff costs) as a percentage of total expenditure | I208: 0.055 | K208: 0.065 | L208: 0.08
B209: Secondary with sixth form | C209: Large | D209: Low FSM | E209: Spend on teaching resources as a percentage of total expenditure | F209: 0.05 | G209: 0.055 | H209: 0.07 | I209: 0.075 | J209: 0.085
B210: Secondary with sixth form | C210: Large | D210: Low FSM | E210: Spend on energy as a percentage of total expenditure | I210: 0.01 | K210: 0.015 | L210: 0.02
B211: Secondary with sixth form | C211: Large | D211: Low FSM | E211: Senior leaders as a percentage of workforce | H211: 0.05 | I211: 0.055 | J211: 0.055 | K211: 0.065 | L211: 0.075
B212: Secondary with sixth form | C212: Large | D212: Low FSM | E212: Pupil to teacher ratio | F212: 15.5 | G212: 16 | H212: 16.5 | I212: 17 | J212: 17 | K212: 18 | L212: 18.5
B213: Secondary with sixth form | C213: Large | D213: Low FSM | E213: Pupil to adult ratio | F213: 9 | G213: 9.5 | H213: 10 | I213: 10.5 | J213: 10.5 | K213: 11 | L213: 12
B214: Secondary with sixth form | C214: Large | D214: Low FSM | E214: Average class size | F214: 19.5 | G214: 20 | H214: 20.5 | I214: 21 | J214: 21.5 | K214: 22.5 | L214: 23.5
A216: 36 | B216: Secondary without sixth form | C216: Small | D216: Low FSM | E216: SSL
B217: Secondary without sixth form | C217: Small | D217: Low FSM | E217: Spend on teaching staff as a percentage of total expenditure | F217: 0.445 | G217: 0.495 | H217: 0.525 | I217: 0.545 | J217: 0.55 | K217: 0.58 | L217: 0.6
... 313 more rows

Sheet Calcs (hidden)
A2: RAG ratings for each school
C4: 1
C5: =IF(Dashboard!D17="Primary","P",IF(Dashboard!D17="Secondary with sixth form","SS",IF(Dashboard!D17="Secondary without sixth form","S",IF(Dashboard!D17="Special","SP",IF(Dashboard!D17="Alternative provision","AP",IF(Dashboard!D17="All-through","AT",IF(Dashboard!D17="Nursery","N"))))))) -> P
C6: =C5& IF($J29="very small","VS",IF($J29="small","S",IF($J29="medium","M",IF($J29="large","L"))))& IF($K29="low levels of FSM","L",IF($K29="medium levels of FSM","M",IF($K29="high levels of FSM","H"))) -> PLH
C7: =C5& IF(AND(C5="SS",$I29="in London"),"Lo",IF($I29="in London","L",IF($I29="outside London","NL"))) -> PNL
C8: 1 | D8: 2 | E8: 3 | F8: 4 | G8: 5 | H8: 6 | I8: 7
A9: Spend on teaching staff as a percentage of total expenditure | B9: 1 | C9: =IF(OR($C$5="P",$C$5="SS",$C$5="S"),INDEX(INDIRECT($C$6),$B9,C$8), IF(OR($C$5="N",$C$5="AP",$C$5="AT",$C$5="SP"),INDEX(INDIRECT($C$7),$B9,C$8))) -> 0.355 | D9: 0.38 | E9: 0.41 | F9: 0.425 | G9: 0.435 | H9: 0.465 | I9: 0.49
A10: Spend on supply staff as a percentage of total expenditure | B10: 2 | E10: =IF(OR($C$5="P",$C$5="SS",$C$5="S"),INDEX(INDIRECT($C$6),$B10,E$8), IF(OR($C$5="N",$C$5="AP",$C$5="AT",$C$5="SP"),INDEX(INDIRECT($C$7),$B10,E$8))) -> 0.02 | F10: 0.025 | G10: 0.03 | H10: 0.045 | I10: 0.06
A11: Spend on education support staff as a percentage of total expenditure | B11: 3 | E11: 0.195 | F11: 0.205 | G11: 0.22 | H11: 0.25 | I11: 0.265
A12: Spend on administrative and clerical staff as a percentage of total expenditure | B12: 4 | F12: =IF(OR($C$5="P",$C$5="SS",$C$5="S"),INDEX(INDIRECT($C$6),$B12,F$8), IF(OR($C$5="N",$C$5="AP",$C$5="AT",$C$5="SP"),INDEX(INDIRECT($C$7),$B12,F$8))) -> 0.045 | H12: =IF(OR($C$5="P",$C$5="SS",$C$5="S"),INDEX(INDIRECT($C$6),$B12,H$8), IF(OR($C$5="N",$C$5="AP",$C$5="AT",$C$5="SP"),INDEX(INDIRECT($C$7),$B12,H$8))) -> 0.06 | I12: =IF(OR($C$5="P",$C$5="SS",$C$5="S"),INDEX(INDIRECT($C$6),$B12,I$8), IF(OR($C$5="N",$C$5="AP",$C$5="AT",$C$5="SP"),INDEX(INDIRECT($C$7),$B12,I$8))) -> 0.075
A13: Spend on other staff costs as a percentage of total expenditure | B13: 5 | F13: 0.035 | H13: =IF(OR($C$5="P",$C$5="SS",$C$5="S"),INDEX(INDIRECT($C$6),$B13,H$8), IF(OR($C$5="N",$C$5="AP",$C$5="AT",$C$5="SP"),INDEX(INDIRECT($C$7),$B13,H$8))) -> 0.045 | I13: =IF(OR($C$5="P",$C$5="SS",$C$5="S"),INDEX(INDIRECT($C$6),$B13,I$8), IF(OR($C$5="N",$C$5="AP",$C$5="AT",$C$5="SP"),INDEX(INDIRECT($C$7),$B13,I$8))) -> 0.06
A14: Spend on premises (including staff costs) as a percentage of total expenditure | B14: 6 | F14: 0.05 | H14: =IF(OR($C$5="P",$C$5="SS",$C$5="S"),INDEX(INDIRECT($C$6),$B14,H$8), IF(OR($C$5="N",$C$5="AP",$C$5="AT",$C$5="SP"),INDEX(INDIRECT($C$7),$B14,H$8))) -> 0.07 | I14: 0.08
A15: Spend on teaching resources as a percentage of total expenditure | B15: 7 | C15: =IF(OR($C$5="P",$C$5="SS",$C$5="S"),INDEX(INDIRECT($C$6),$B15,C$8), IF(OR($C$5="N",$C$5="AP",$C$5="AT",$C$5="SP"),INDEX(INDIRECT($C$7),$B15,C$8))) -> 0.025 | D15: =IF(OR($C$5="P",$C$5="SS",$C$5="S"),INDEX(INDIRECT($C$6),$B15,D$8), IF(OR($C$5="N",$C$5="AP",$C$5="AT",$C$5="SP"),INDEX(INDIRECT($C$7),$B15,D$8))) -> 0.03 | E15: =IF(OR($C$5="P",$C$5="SS",$C$5="S"),INDEX(INDIRECT($C$6),$B15,E$8), IF(OR($C$5="N",$C$5="AP",$C$5="AT",$C$5="SP"),INDEX(INDIRECT($C$7),$B15,E$8))) -> 0.04 | F15: =IF(OR($C$5="P",$C$5="SS",$C$5="S"),INDEX(INDIRECT($C$6),$B15,F$8), IF(OR($C$5="N",$C$5="AP",$C$5="AT",$C$5="SP"),INDEX(INDIRECT($C$7),$B15,F$8))) -> 0.045 | G15: =IF(OR($C$5="P",$C$5="SS",$C$5="S"),INDEX(INDIRECT($C$6),$B15,G$8), IF(OR($C$5="N",$C$5="AP",$C$5="AT",$C$5="SP"),INDEX(INDIRECT($C$7),$B15,G$8))) -> 0.05
A16: Spend on energy as a percentage of total expenditure | B16: 8 | F16: 0.01 | H16: 0.015 | I16: 0.02
A17: Senior leaders as a percentage of workforce | B17: 9 | E17: =IF(OR($C$5="P",$C$5="SS",$C$5="S"),INDEX(INDIRECT($C$6),$B17,E$8), IF(OR($C$5="N",$C$5="AP",$C$5="AT",$C$5="SP"),INDEX(INDIRECT($C$7),$B17,E$8))) -> 0.065 | F17: 0.07 | G17: =IF(OR($C$5="P",$C$5="SS",$C$5="S"),INDEX(INDIRECT($C$6),$B17,G$8), IF(OR($C$5="N",$C$5="AP",$C$5="AT",$C$5="SP"),INDEX(INDIRECT($C$7),$B17,G$8))) -> 0.075 | H17: 0.09 | I17: 0.105
A18: Pupil to teacher ratio | B18: 10 | C18: =IF(OR($C$5="P",$C$5="SS",$C$5="S"),INDEX(INDIRECT($C$6),$B18,C$8), IF(OR($C$5="N",$C$5="AP",$C$5="AT",$C$5="SP"),INDEX(INDIRECT($C$7),$B18,C$8))) -> 17 | D18: =IF(OR($C$5="P",$C$5="SS",$C$5="S"),INDEX(INDIRECT($C$6),$B18,D$8), IF(OR($C$5="N",$C$5="AP",$C$5="AT",$C$5="SP"),INDEX(INDIRECT($C$7),$B18,D$8))) -> 18 | E18: =IF(OR($C$5="P",$C$5="SS",$C$5="S"),INDEX(INDIRECT($C$6),$B18,E$8), IF(OR($C$5="N",$C$5="AP",$C$5="AT",$C$5="SP"),INDEX(INDIRECT($C$7),$B18,E$8))) -> 20 | F18: 20.5 | G18: =IF(OR($C$5="P",$C$5="SS",$C$5="S"),INDEX(INDIRECT($C$6),$B18,G$8), IF(OR($C$5="N",$C$5="AP",$C$5="AT",$C$5="SP"),INDEX(INDIRECT($C$7),$B18,G$8))) -> 21 | H18: 23 | I18: 24.5
A19: Pupil to adult ratio | B19: 11 | C19: =IF(OR($C$5="P",$C$5="SS",$C$5="S"),INDEX(INDIRECT($C$6),$B19,C$8), IF(OR($C$5="N",$C$5="AP",$C$5="AT",$C$5="SP"),INDEX(INDIRECT($C$7),$B19,C$8))) -> 7 | D19: =IF(OR($C$5="P",$C$5="SS",$C$5="S"),INDEX(INDIRECT($C$6),$B19,D$8), IF(OR($C$5="N",$C$5="AP",$C$5="AT",$C$5="SP"),INDEX(INDIRECT($C$7),$B19,D$8))) -> 7.5 | E19: =IF(OR($C$5="P",$C$5="SS",$C$5="S"),INDEX(INDIRECT($C$6),$B19,E$8), IF(OR($C$5="N",$C$5="AP",$C$5="AT",$C$5="SP"),INDEX(INDIRECT($C$7),$B19,E$8))) -> 8 | F19: 8.5 | G19: =IF(OR($C$5="P",$C$5="SS",$C$5="S"),INDEX(INDIRECT($C$6),$B19,G$8), IF(OR($C$5="N",$C$5="AP",$C$5="AT",$C$5="SP"),INDEX(INDIRECT($C$7),$B19,G$8))) -> 9 | H19: 9.5 | I19: 10.5
A20: Average class size | B20: 12 | C20: =IF(OR($C$5="P",$C$5="SS",$C$5="S"),INDEX(INDIRECT($C$6),$B20,C$8), IF(OR($C$5="N",$C$5="AP",$C$5="SP"),"",IF($C$5="AT",INDEX(INDIRECT($C$7),$B20,C$8)))) -> 24.5 | D20: 25.5 | E20: 27 | F20: 27.5 | G20: 28 | H20: 29 | I20: 29.5
A21: Average teacher cost | B21: 13 | C21: =IF(OR($C$5="P",$C$5="SS",$C$5="S"),INDEX(INDIRECT($C$7),1,C$8), IF(OR($C$5="N",$C$5="AP",$C$5="SP"),INDEX(INDIRECT($C$7),$B20,C$8), IF($C$5="AT",INDEX(INDIRECT($C$7),$B21,C$8)))) -> 44000 | D21: =IF(OR($C$5="P",$C$5="SS",$C$5="S"),INDEX(INDIRECT($C$7),1,D$8), IF(OR($C$5="N",$C$5="AP",$C$5="SP"),INDEX(INDIRECT($C$7),$B20,D$8), IF($C$5="AT",INDEX(INDIRECT($C$7),$B21,D$8)))) -> 47000 | E21: 50000 | F21: 51500 | G21: 53000 | H21: 56500 | I21: 60000
A26: Information for the 'RAG rating data for your school' look ups
A28: School name from dashboard | D28: Named ranges for RAG ratings above | E28: School information from dashboard | I28: Info for comparison description
A29: =IF(Dashboard!D$15=0,"",Dashboard!D$15) -> Furzefield Primary School | B29: 1 | C29: H | D29: A | E29: =IF(Dashboard!D$17=0,"",Dashboard!D$17) -> Primary | F29: =IF(Dashboard!D$18=0,"",Dashboard!D$18) -> South East | G29: =IF(Dashboard!D$19=0,"",Dashboard!D$19) -> 459 | H29: =IF(Dashboard!D$20=0,"",Dashboard!D$20) -> 0.1983 | I29: =IF(F29="","",IF(OR(F29="Inner London",F29="Outer London"),"in London","outside London")) -> outside London | J29: =IF(AND(E29="Primary",G29<=$X$30),"very small",IF(AND(E29="Primary",G29<=$Y$30,G29>$X$30),"small",IF(AND(E29="Primary",G29>$Y$30,G29<=$Z$30),"medium",IF(AND(E29="Primary",G29>$Z$30),"large", IF(AND(E29="Secondary with sixth form",G29<=$Y$31),"small",IF(AND(E29="Secondary with sixth form",G29>$Y$31,G29<=$Z$31),"medium",IF(AND(E29="Secondary with sixth form",G29>$Z$31),"large", IF(AND(E29="Secondary without sixth form",G29<=$Y$32),"small",IF(AND(E29="Secondary without sixth form",G29>$Y$32,G29<=$Z$32),"medium",IF(AND(E29="Secondary without sixth form",G29>$Z$32),"large","")))))))))) -> large | K29: =IF(AND(E29="Primary",H29<=$X$35),"low levels of FSM",IF(AND(E29="Primary",H29>$X$35,H29<=$Y$35),"medium levels of FSM",IF(AND(E29="Primary",H29>$Y$35),"high levels of FSM", IF(AND(E29="Secondary with sixth form",H29<=$X$36),"low levels of FSM",IF(AND(E29="Secondary with sixth form",H29>$X$36,H29<=$Y$36),"medium levels of FSM",IF(AND(E29="Secondary with sixth form",H29>$Y$36),"high levels of FSM", IF(AND(E29="Secondary without sixth form",H29<=$X$37),"low levels of FSM",IF(AND(E29="Secondary without sixth form",H29>$X$37,H29<=$Y$37),"medium levels of FSM",IF(AND(E29="Secondary without sixth form",H29>$Y$37),"high levels of FSM",""))))))))) -> high levels of FSM | L29: =IF(E29="Primary","a primary school",IF(E29="Secondary with sixth form","a secondary school with a sixth form",IF(E29="Secondary without sixth form","a secondary school without a sixth form",IF(E29="Special","a special school",IF(E29="Alternative provision","an alternative provision school",IF(E29="All-through","an all-through school",IF(E29="Nursery","a nursery school",""))))))) -> a primary school | M29: =IF(AND(E29="Primary",J29="very small"),$X$30&" or fewer pupils", IF(AND(E29="Primary",J29="small"),"between "&$X$30+1&" and "&$Y$30&" pupils", IF(AND(E29="Primary",J29="medium"),"between "&$Y$30+1&" and "&$Z$30&" pupils", IF(AND(E29="Primary",J29="large"),"more than "&$Z$30&" pupils", IF(AND(E29="Secondary with sixth form",J29="small"),$Y$31&" or fewer pupils", IF(AND(E29="Secondary with sixth form",J29="medium"),"between "&$Y$31+1&" and "&$Z$31&" pupils", IF(AND(E29="Secondary with sixth form",J29="large"),"more than "&$Z$31&" pupils", IF(AND(E29="Secondary without sixth form",J29="small"),$Y$32&" or fewer pupils", IF(AND(E29="Secondary without sixth form",J29="medium"),"between "&$Y$32+1&" and "&$Z$32&" pupils", IF(AND(E29="Secondary without sixth form",J29="large"),"more than "&$Z$32&" pupils","")))))))))) -> more than 385 pupils | N29: =IF(AND(E29="Primary",K29="low levels of FSM"),"less than "&$Z$35&" of pupils", IF(AND(E29="Primary",K29="medium levels of FSM"),"between "&$Z$35&" and "&$AA$35&" of pupils", IF(AND(E29="Primary",K29="high levels of FSM"),"more than "&$AA$35&" of pupils", IF(AND(E29="Secondary with sixth form",K29="low levels of FSM"),"less than "&$Z$36&" of pupils", IF(AND(E29="Secondary with sixth form",K29="medium levels of FSM"),"between "&$Z$36&" and "&$AA$36&" of pupils", IF(AND(E29="Secondary with sixth form",K29="high levels of FSM"),"more than "&$AA$36&" of pupils", IF(AND(E29="Secondary without sixth form",K29="low levels of FSM"),"less than "&$Z$37&" of pupils", IF(AND(E29="Secondary without sixth form",K29="medium levels of FSM"),"between "&$Z$37&" and "&$AA$37&" of pupils", IF(AND(E29="Secondary without sixth form",K29="high levels of FSM"),"more than "&$AA$37&" of pupils",""))))))))) -> more than 18% of pupils | X29: Very small | Y29: Small | Z29: Medium
W30: Primary | X30: 100 | Y30: 175 | Z30: 385
W31: Secondary with sixth form | Y31: 770 | Z31: 1300
W32: Secondary without sixth form | Y32: 485 | Z32: 935
X34: Low | Y34: Medium
W35: Primary | X35: 0.05 | Y35: 0.18 | Z35: =(X35*100)&"%" -> 5% | AA35: 18%
W36: Secondary with sixth form | X36: 0.06 | Y36: 0.165 | Z36: 6% | AA36: 16.5%
W37: Secondary without sixth form | X37: 0.08 | Y37: 0.215 | Z37: 8% | AA37: 21.5%
A43: RAG rating text for dashboard
A45: Lowest 10% of similar schools | B45: Much lower than recommended
A46: Lowest 20% of similar schools | B46: Lower than recommended
A47: Broadly in line with similar schools | B47: Broadly in line with recommendations
A48: Middle 20% of similar schools | B48: Higher than recommended
A49: Highest 20% of similar schools | B49: Much higher than recommended
A50: Highest 10% of similar schools
B51: Inadequate
B52: Requires Improvement
A53: High risk | B53: Good
A54: Medium risk | B54: Outstanding
A55: Low risk
B56: Well below average
B57: Below average
B58: Average or above average
B59: Well above average
A62: Primary
A63: Secondary with sixth form
A64: Secondary without sixth form
A65: All-through
A66: ="" -> 
